{"text_format":"1","workbook":"xlsx","n_sheets":7,"sheets":["Catégories","Input","Analyse","Home","Rapport","Configuration","Comptes"],"not_rendered":{"charts":3,"images":1,"macros":1,"external_links":0,"defined_names":7,"comments":0,"pivot_tables":4},"unopened":[],"bounds":{"document_bytes":16777216,"sheet_cells":100000,"rows_first":2000,"rows_last":500,"rows_between":2000,"halvings":0,"cell_chars":16384,"cell_head_chars":4096},"cells_cut":0,"cells_raw":0,"read":"whole","date_system":"1900"}

{"sheet":"Catégories","index":0,"n_rows":23,"n_cols":36,"rows_kept":23,"cut":false,"hidden":true,"merged":[[17,13,17,14],[1,19,1,20],[1,22,1,23],[1,31,1,32],[1,13,1,14],[17,1,17,2],[1,4,1,5],[1,7,1,8],[1,10,1,11],[17,4,17,5],[17,7,17,8],[17,10,17,11],[1,25,1,26],[1,28,1,29],[1,16,1,17],[1,34,1,35],[1,1,1,2]]}
[]
[null,"Catégories Sorties",null,null,{"$f":"INDEX(Sortie[Catégories],MATCH(1,Sortie[ID],0))","v":"Alimentation"},null,null,{"$f":"INDEX(Sortie[Catégories],MATCH(2,Sortie[ID],0))","v":"Logement"},null,null,{"$f":"INDEX(Sortie[Catégories],MATCH(3,Sortie[ID],0))","v":"Transport"},null,null,{"$f":"INDEX(Sortie[Catégories],MATCH(4,Sortie[ID],0))","v":"Vêtement"},null,null,{"$f":"INDEX(Sortie[Catégories],MATCH(5,Sortie[ID],0))","v":"Loisirs"},null,null,{"$f":"INDEX(Sortie[Catégories],MATCH(6,Sortie[ID],0))","v":"Internet - Téléphonie"},null,null,{"$f":"INDEX(Sortie[Catégories],MATCH(7,Sortie[ID],0))","v":"Assurance"},null,null,{"$f":"INDEX(Sortie[Catégories],MATCH(8,Sortie[ID],0))","v":"Vacances"},null,null,{"$f":"INDEX(Sortie[Catégories],MATCH(9,Sortie[ID],0))","v":"Frais Bancaire"},null,null,{"$f":"INDEX(Sortie[Catégories],MATCH(10,Sortie[ID],0))","v":"Maëva"},null,null,{"$f":"INDEX(Sortie[Catégories],MATCH(11,Sortie[ID],0))","v":"Soins"}]
[null,"ID","Catégories",null,"ID","Sous-Catégories",null,"ID","Sous-Catégories",null,"ID","Sous-Catégories",null,"ID","Sous-Catégories",null,"ID","Sous-Catégories",null,"ID","Sous-Catégories",null,"ID","Sous-Catégories",null,"ID","Sous-Catégories",null,"ID","Sous-Catégories",null,"ID","Sous-Catégories",null,"ID","Sous-Catégories"]
[null,1,"Alimentation",null,"1.1","Leclerc",null,"2.1","Loyer",null,"3.1","Essence",null,"4.1","Haut",null,"5.1","Tabac",null,"6.1","Free Mobile",null,"7.1","Air Alpha Auto",null,"8.1","Transport",null,"9.1","Frais de Gestion de Compte",null,"10.1","Fumette",null,"11.1","Frais Médicaux"]
[null,2,"Logement",null,"1.2","Auchan",null,"2.2","Electricité",null,"3.2","Autoroute",null,"4.2","Bas",null,"5.2","Cadeau",null,"6.2","Autre Dépense Internet - Téléphonie",null,"7.2","Air Alpha Habitation",null,"8.2","Logement",null,"9.2","Autre Frais Bancaire",null,"10.2","Free Mobile",null,"11.2","Frais Pharmaceutiques"]
[null,3,"Transport",null,"1.3","Fast-Food",null,"2.3","Impôts",null,"3.3","Entretien",null,"4.3","Chaussures",null,"5.3","Coiffeur",null,null,null,null,"7.3","Autre Dépense Assurance",null,"8.3","Activités",null,null,null,null,"10.3","Autre Dépense Maeva",null,"11.3","Frais d'Hospitalisation"]
[null,4,"Vêtement",null,"1.4","Restaurant",null,"2.4","Autre Dépense Logement",null,"3.4","Autre Dépense Transport",null,"4.4","Autre Dépense Vêtement",null,"5.4","Sport",null,null,null,null,null,null,null,"8.4","Alimentation",null,null,null,null,null,null,null,"11.4","Optiques"]
[null,5,"Loisirs",null,"1.5","L'entrepôt",null,null,null,null,null,null,null,null,null,null,"5.5","Abonnement",null,null,null,null,null,null,null,"8.5","Souvenirs",null,null,null,null,null,null,null,"11.5","Autre Frais Santé"]
[null,6,"Internet - Téléphonie",null,"1.6","Leader Price",null,null,null,null,null,null,null,null,null,null,"5.6","Activité Culturelle",null,null,null,null,null,null,null,"8.6","Autre Dépense Vacances"]
[null,7,"Assurance",null,"1.7","L'arche des Fromages",null,null,null,null,null,null,null,null,null,null,"5.7","Cinéma"]
[null,8,"Vacances",null,"1.8","Autre Dépense Alimentation",null,null,null,null,null,null,null,null,null,null,"5.8","Jeux Vidéo"]
[null,9,"Frais Bancaire",null,null,null,null,null,null,null,null,null,null,null,null,null,"5.9","Electronique"]
[null,10,"Maëva",null,null,null,null,null,null,null,null,null,null,null,null,null,"5.10","Autre Dépense Loisir"]
[null,11,"Soins"]
[]
[]
[]
[null,"Catégories Entrées",null,null,{"$f":"INDEX(Entree[Catégories],MATCH(1,Entree[ID],0))","v":"Professionnel"},null,null,"Aides",null,null,{"$f":"INDEX(Entree[Catégories],MATCH(3,Entree[ID],0))","v":"Remboursement"},null,null,{"$f":"INDEX(Entree[Catégories],MATCH(4,Entree[ID],0))","v":"Cadeau"}]
[null,"ID","Catégories",null,"ID","Sous-Catégories",null,"ID","Sous-Catégories",null,"ID","Sous-Catégories",null,"ID","Sous-Catégories"]
[null,1,"Professionnel",null,"1.1","Salaire",null,"2.1","APL",null,"3.1","Medecin",null,"4.1","Anniversaire"]
[null,2,"CAF",null,null,null,null,"2.2","Bourses",null,"3.2","Médicaments",null,"4.2","Noël"]
[null,3,"Remboursement",null,null,null,null,null,null,null,"3.3","Dentiste"]
[null,4,"Cadeau",null,null,null,null,null,null,null,"3.4","Autre Remboursement"]

{"sheet":"Input","index":1,"n_rows":433,"n_cols":43,"rows_kept":433,"cut":false,"hidden":true,"merged":[]}
[]
[null,"ID","Date","Type","Somme","Compte","Du/Au","Description","Catid","Catégorie","Subid","Sous-Catégorie","Référence","Commentaires","Année","Mois","Recherche",null,null,null,null,null,null,null,null,"Recherche",null,"ID","Date","Type","Somme","Compte","Du/Au","Description","Catid","Catégorie","Subid","Sous-Catégorie","Référence","Commentaires","Année","Mois","Recherche"]
[null,{"$f":"ROW(B3)-2","v":1},"02/01/2018","Sortie",212.49,"Compte Courant","","Air Alpha",7,{"$f":"IFERROR(IF(OR(Inpute[Type]=\"Sortie\",Inpute[Type]=\"Budget\"),VLOOKUP(Inpute[Catid],Sortie[],2,0),IF(Inpute[Type]=\"Entrée\",VLOOKUP(Inpute[Catid],Entree[],2,0),\"\")),\" \")","v":"Assurance"},"7.1",{"$f":"IFERROR(IF(OR(Inpute[Type]=\"Sortie\",Inpute[Type]=\"Budget\"),VLOOKUP(Inpute[Subid],INDIRECT(\"Sortie\"&Inpute[Catid]),2,0),IF(Inpute[Type]=\"Entrée\",VLOOKUP(Inpute[Subid],INDIRECT(\"Entree\"&Inpute[Catid]),2,0),\"\")),\"\")","v":"Air Alpha Auto"},"","",{"$f":"YEAR(C3)","v":2018},{"$f":"TEXT(C3,\"mmmm\")","v":"janvier"},{"$f":"CONCATENATE(TEXT(Inpute[Date],\"jj/mm/aaaa\"),\" \",Inpute[Type],\" \",Inpute[Somme],\" \",Inpute[Compte],\" \",Inpute[Du/Au],\" \",Inpute[Description],\" \",Inpute[Catégorie],\" \",Inpute[Sous-Catégorie],\" \",Inpute[Référence],\" \",Inpute[Commentaires],\" \",Inpute[Année],\" \",Inpute[Mois])","v":"02/01/2018 Sortie 212,49 Compte Courant  Air Alpha Assurance Air Alpha Auto   2018 janvier"},null,null,null,null,null,null,null,null,"**",null,1,"02/01/2018","Sortie",212.49,"Compte Courant","","Air Alpha",7,"Assurance","7.1","Air Alpha Auto","","",2018,"janvier","02/01/2018 Sortie 212,49 Compte Courant  Air Alpha Assurance Air Alpha Auto   2018 janvier"]
[null,null,null,null,null,null,null,null,null,null,null,null,null,null,null,null,null,null,null,null,null,null,null,null,null,null,null,2,"01/01/2018","Sortie",27.65,"Compte Courant","","Mcdonald",1,"Alimentation","1.3","Fast-Food","","",2018,"janvier","01/01/2018 Sortie 27,65 Compte Courant  Mcdonald Alimentation Fast-Food   2018 janvier"]
[null,null,null,null,null,null,null,null,null,null,null,null,null,null,null,null,null,null,null,null,null,null,null,null,null,null,null,3,"01/01/2018","Sortie",14.4,"Compte Courant","","Tabac",10,"Maëva","10.1","Fumette","","",2018,"janvier","01/01/2018 Sortie 14,4 Compte Courant  Tabac Maëva Fumette   2018 janvier"]
[null,null,null,null,null,null,null,null,null,null,null,null,null,null,null,null,null,null,null,null,null,null,null,null,null,null,null,4,"03/01/2018","Sortie",55.01,"Compte Courant","","Drive",1,"Alimentation","1.1","Leclerc","","",2018,"janvier","03/01/2018 Sortie 55,01 Compte Courant  Drive Alimentation Leclerc   2018 janvier"]
[null,null,null,null,null,null,null,null,null,null,null,null,null,null,null,null,null,null,null,null,null,null,null,null,null,null,null,5,"03/01/2018","Sortie",4.1100000000000003,"Compte Courant","","Fruits & Légumes",1,"Alimentation","1.5","L'entrepôt","","",2018,"janvier","03/01/2018 Sortie 4,11 Compte Courant  Fruits & Légumes Alimentation L'entrepôt   2018 janvier"]
[null,null,null,null,null,null,null,null,null,null,null,null,null,null,null,null,null,null,null,null,null,null,null,null,null,null,null,6,"04/01/2018","Entrée",89,"Compte Courant","Maman","Virement Noël Famille",4,"Cadeau","4.2","Noël","","",2018,"janvier","04/01/2018 Entrée 89 Compte Courant Maman Virement Noël Famille Cadeau Noël   2018 janvier"]
[null,null,null,null,null,null,null,null,null,null,null,null,null,null,null,null,null,null,null,null,null,null,null,null,null,null,null,7,"03/01/2018","Sortie",25,"Compte Courant","","Medecin",11,"Soins","11.1","Frais Médicaux","","",2018,"janvier","03/01/2018 Sortie 25 Compte Courant  Medecin Soins Frais Médicaux   2018 janvier"]
[null,null,null,null,null,null,null,null,null,null,null,null,null,null,null,null,null,null,null,null,null,null,null,null,null,null,null,8,"03/01/2018","Sortie",9.9,"Compte Courant","","Photo",10,"Maëva","10.3","Autre Dépense Maeva","","",2018,"janvier","03/01/2018 Sortie 9,9 Compte Courant  Photo Maëva Autre Dépense Maeva   2018 janvier"]
[null,null,null,null,null,null,null,null,null,null,null,null,null,null,null,null,null,null,null,null,null,null,null,null,null,null,null,9,"08/01/2018","Budget",43,"Compte Courant",null,"EDF",2,"Logement","2.2","Electricité",null,null,2018,"janvier","08/01/2018 Budget 43 Compte Courant  EDF Logement Electricité   2018 janvier"]
[null,null,null,null,null,null,null,null,null,null,null,null,null,null,null,null,null,null,null,null,null,null,null,null,null,null,null,10,"08/02/2018","Budget",43,"Compte Courant",null,"EDF",2,"Logement","2.2","Electricité",null,null,2018,"février","08/02/2018 Budget 43 Compte Courant  EDF Logement Electricité   2018 février"]
[null,null,null,null,null,null,null,null,null,null,null,null,null,null,null,null,null,null,null,null,null,null,null,null,null,null,null,11,"08/03/2018","Budget",43,"Compte Courant",null,"EDF",2,"Logement","2.2","Electricité",null,null,2018,"mars","08/03/2018 Budget 43 Compte Courant  EDF Logement Electricité   2018 mars"]
[null,null,null,null,null,null,null,null,null,null,null,null,null,null,null,null,null,null,null,null,null,null,null,null,null,null,null,12,"08/04/2018","Budget",43,"Compte Courant",null,"EDF",2,"Logement","2.2","Electricité",null,null,2018,"avril","08/04/2018 Budget 43 Compte Courant  EDF Logement Electricité   2018 avril"]
[null,null,null,null,null,null,null,null,null,null,null,null,null,null,null,null,null,null,null,null,null,null,null,null,null,null,null,13,"08/05/2018","Budget",43,"Compte Courant",null,"EDF",2,"Logement","2.2","Electricité",null,null,2018,"mai","08/05/2018 Budget 43 Compte Courant  EDF Logement Electricité   2018 mai"]
[null,null,null,null,null,null,null,null,null,null,null,null,null,null,null,null,null,null,null,null,null,null,null,null,null,null,null,14,"08/06/2018","Budget",43,"Compte Courant",null,"EDF",2,"Logement","2.2","Electricité",null,null,2018,"juin","08/06/2018 Budget 43 Compte Courant  EDF Logement Electricité   2018 juin"]
[null,null,null,null,null,null,null,null,null,null,null,null,null,null,null,null,null,null,null,null,null,null,null,null,null,null,null,15,"08/07/2018","Budget",43,"Compte Courant",null,"EDF",2,"Logement","2.2","Electricité",null,null,2018,"juillet","08/07/2018 Budget 43 Compte Courant  EDF Logement Electricité   2018 juillet"]
[null,null,null,null,null,null,null,null,null,null,null,null,null,null,null,null,null,null,null,null,null,null,null,null,null,null,null,16,"08/08/2018","Budget",43,"Compte Courant",null,"EDF",2,"Logement","2.2","Electricité",null,null,2018,"août","08/08/2018 Budget 43 Compte Courant  EDF Logement Electricité   2018 août"]
[null,null,null,null,null,null,null,null,null,null,null,null,null,null,null,null,null,null,null,null,null,null,null,null,null,null,null,17,"08/09/2018","Budget",43,"Compte Courant",null,"EDF",2,"Logement","2.2","Electricité",null,null,2018,"septembre","08/09/2018 Budget 43 Compte Courant  EDF Logement Electricité   2018 septembre"]
[null,null,null,null,null,null,null,null,null,null,null,null,null,null,null,null,null,null,null,null,null,null,null,null,null,null,null,18,"08/10/2018","Budget",43,"Compte Courant",null,"EDF",2,"Logement","2.2","Electricité",null,null,2018,"octobre","08/10/2018 Budget 43 Compte Courant  EDF Logement Electricité   2018 octobre"]
[null,null,null,null,null,null,null,null,null,null,null,null,null,null,null,null,null,null,null,null,null,null,null,null,null,null,null,19,"08/11/2018","Budget",43,"Compte Courant",null,"EDF",2,"Logement","2.2","Electricité",null,null,2018,"novembre","08/11/2018 Budget 43 Compte Courant  EDF Logement Electricité   2018 novembre"]
[null,null,null,null,null,null,null,null,null,null,null,null,null,null,null,null,null,null,null,null,null,null,null,null,null,null,null,20,"08/12/2018","Budget",43,"Compte Courant",null,"EDF",2,"Logement","2.2","Electricité",null,null,2018,"décembre","08/12/2018 Budget 43 Compte Courant  EDF Logement Electricité   2018 décembre"]
[null,null,null,null,null,null,null,null,null,null,null,null,null,null,null,null,null,null,null,null,null,null,null,null,null,null,null,21,"08/01/2019","Budget",43,"Compte Courant",null,"EDF",2,"Logement","2.2","Electricité",null,null,2019,"janvier","08/01/2019 Budget 43 Compte Courant  EDF Logement Electricité   2019 janvier"]
[null,null,null,null,null,null,null,null,null,null,null,null,null,null,null,null,null,null,null,null,null,null,null,null,null,null,null,22,"08/01/2018","Sortie",43,"Compte Courant","","EDF",2,"Logement","2.2","Electricité","","",2018,"janvier","08/01/2018 Sortie 43 Compte Courant  EDF Logement Electricité   2018 janvier"]
[null,null,null,null,null,null,null,null,null,null,null,null,null,null,null,null,null,null,null,null,null,null,null,null,null,null,null,23,"08/01/2018","Entrée",16.5,"Compte Courant","","Sécurité Sociale",3,"Remboursement","3.1","Medecin","","",2018,"janvier","08/01/2018 Entrée 16,5 Compte Courant  Sécurité Sociale Remboursement Medecin   2018 janvier"]
[null,null,null,null,null,null,null,null,null,null,null,null,null,null,null,null,null,null,null,null,null,null,null,null,null,null,null,24,"05/01/2018","Entrée",326,"Compte Courant","","CAF",2,"CAF","2.1","APL","","",2018,"janvier","05/01/2018 Entrée 326 Compte Courant  CAF CAF APL   2018 janvier"]
[null,null,null,null,null,null,null,null,null,null,null,null,null,null,null,null,null,null,null,null,null,null,null,null,null,null,null,25,"05/01/2018","Sortie",9.9,"Compte Courant","","Coiffeur",5,"Loisirs","5.3","Coiffeur","","",2018,"janvier","05/01/2018 Sortie 9,9 Compte Courant  Coiffeur Loisirs Coiffeur   2018 janvier"]
[null,null,null,null,null,null,null,null,null,null,null,null,null,null,null,null,null,null,null,null,null,null,null,null,null,null,null,26,"05/01/2018","Sortie",45,"Compte Courant","","Epargne PEL",2,"Logement","2.4","Autre Dépense Logement","","",2018,"janvier","05/01/2018 Sortie 45 Compte Courant  Epargne PEL Logement Autre Dépense Logement   2018 janvier"]
[null,null,null,null,null,null,null,null,null,null,null,null,null,null,null,null,null,null,null,null,null,null,null,null,null,null,null,27,"05/01/2018","Budget",45,"Compte Courant",null,"Epargne PEL",2,"Logement","2.4","Autre Dépense Logement",null,null,2018,"janvier","05/01/2018 Budget 45 Compte Courant  Epargne PEL Logement Autre Dépense Logement   2018 janvier"]
[null,null,null,null,null,null,null,null,null,null,null,null,null,null,null,null,null,null,null,null,null,null,null,null,null,null,null,28,"05/02/2018","Budget",45,"Compte Courant",null,"Epargne PEL",2,"Logement","2.4","Autre Dépense Logement",null,null,2018,"février","05/02/2018 Budget 45 Compte Courant  Epargne PEL Logement Autre Dépense Logement   2018 février"]
[null,null,null,null,null,null,null,null,null,null,null,null,null,null,null,null,null,null,null,null,null,null,null,null,null,null,null,29,"05/03/2018","Budget",45,"Compte Courant",null,"Epargne PEL",2,"Logement","2.4","Autre Dépense Logement",null,null,2018,"mars","05/03/2018 Budget 45 Compte Courant  Epargne PEL Logement Autre Dépense Logement   2018 mars"]
[null,null,null,null,null,null,null,null,null,null,null,null,null,null,null,null,null,null,null,null,null,null,null,null,null,null,null,30,"05/04/2018","Budget",45,"Compte Courant",null,"Epargne PEL",2,"Logement","2.4","Autre Dépense Logement",null,null,2018,"avril","05/04/2018 Budget 45 Compte Courant  Epargne PEL Logement Autre Dépense Logement   2018 avril"]
[null,null,null,null,null,null,null,null,null,null,null,null,null,null,null,null,null,null,null,null,null,null,null,null,null,null,null,31,"05/05/2018","Budget",45,"Compte Courant",null,"Epargne PEL",2,"Logement","2.4","Autre Dépense Logement",null,null,2018,"mai","05/05/2018 Budget 45 Compte Courant  Epargne PEL Logement Autre Dépense Logement   2018 mai"]
[null,null,null,null,null,null,null,null,null,null,null,null,null,null,null,null,null,null,null,null,null,null,null,null,null,null,null,32,"05/06/2018","Budget",45,"Compte Courant",null,"Epargne PEL",2,"Logement","2.4","Autre Dépense Logement",null,null,2018,"juin","05/06/2018 Budget 45 Compte Courant  Epargne PEL Logement Autre Dépense Logement   2018 juin"]
[null,null,null,null,null,null,null,null,null,null,null,null,null,null,null,null,null,null,null,null,null,null,null,null,null,null,null,33,"05/07/2018","Budget",45,"Compte Courant",null,"Epargne PEL",2,"Logement","2.4","Autre Dépense Logement",null,null,2018,"juillet","05/07/2018 Budget 45 Compte Courant  Epargne PEL Logement Autre Dépense Logement   2018 juillet"]
[null,null,null,null,null,null,null,null,null,null,null,null,null,null,null,null,null,null,null,null,null,null,null,null,null,null,null,34,"05/08/2018","Budget",45,"Compte Courant",null,"Epargne PEL",2,"Logement","2.4","Autre Dépense Logement",null,null,2018,"août","05/08/2018 Budget 45 Compte Courant  Epargne PEL Logement Autre Dépense Logement   2018 août"]
[null,null,null,null,null,null,null,null,null,null,null,null,null,null,null,null,null,null,null,null,null,null,null,null,null,null,null,35,"05/09/2018","Budget",45,"Compte Courant",null,"Epargne PEL",2,"Logement","2.4","Autre Dépense Logement",null,null,2018,"septembre","05/09/2018 Budget 45 Compte Courant  Epargne PEL Logement Autre Dépense Logement   2018 septembre"]
[null,null,null,null,null,null,null,null,null,null,null,null,null,null,null,null,null,null,null,null,null,null,null,null,null,null,null,36,"05/10/2018","Budget",45,"Compte Courant",null,"Epargne PEL",2,"Logement","2.4","Autre Dépense Logement",null,null,2018,"octobre","05/10/2018 Budget 45 Compte Courant  Epargne PEL Logement Autre Dépense Logement   2018 octobre"]
[null,null,null,null,null,null,null,null,null,null,null,null,null,null,null,null,null,null,null,null,null,null,null,null,null,null,null,37,"05/11/2018","Budget",45,"Compte Courant",null,"Epargne PEL",2,"Logement","2.4","Autre Dépense Logement",null,null,2018,"novembre","05/11/2018 Budget 45 Compte Courant  Epargne PEL Logement Autre Dépense Logement   2018 novembre"]
[null,null,null,null,null,null,null,null,null,null,null,null,null,null,null,null,null,null,null,null,null,null,null,null,null,null,null,38,"05/12/2018","Budget",45,"Compte Courant",null,"Epargne PEL",2,"Logement","2.4","Autre Dépense Logement",null,null,2018,"décembre","05/12/2018 Budget 45 Compte Courant  Epargne PEL Logement Autre Dépense Logement   2018 décembre"]
[null,null,null,null,null,null,null,null,null,null,null,null,null,null,null,null,null,null,null,null,null,null,null,null,null,null,null,39,"05/01/2019","Budget",45,"Compte Courant",null,"Epargne PEL",2,"Logement","2.4","Autre Dépense Logement",null,null,2019,"janvier","05/01/2019 Budget 45 Compte Courant  Epargne PEL Logement Autre Dépense Logement   2019 janvier"]
[null,null,null,null,null,null,null,null,null,null,null,null,null,null,null,null,null,null,null,null,null,null,null,null,null,null,null,40,"05/01/2018","Budget",9.9,"Compte Courant",null,"Addict Coiffure",5,"Loisirs","5.3","Coiffeur",null,null,2018,"janvier","05/01/2018 Budget 9,9 Compte Courant  Addict Coiffure Loisirs Coiffeur   2018 janvier"]
[null,null,null,null,null,null,null,null,null,null,null,null,null,null,null,null,null,null,null,null,null,null,null,null,null,null,null,41,"05/02/2018","Budget",9.9,"Compte Courant",null,"Addict Coiffure",5,"Loisirs","5.3","Coiffeur",null,null,2018,"février","05/02/2018 Budget 9,9 Compte Courant  Addict Coiffure Loisirs Coiffeur   2018 février"]
[null,null,null,null,null,null,null,null,null,null,null,null,null,null,null,null,null,null,null,null,null,null,null,null,null,null,null,42,"05/03/2018","Budget",9.9,"Compte Courant",null,"Addict Coiffure",5,"Loisirs","5.3","Coiffeur",null,null,2018,"mars","05/03/2018 Budget 9,9 Compte Courant  Addict Coiffure Loisirs Coiffeur   2018 mars"]
[null,null,null,null,null,null,null,null,null,null,null,null,null,null,null,null,null,null,null,null,null,null,null,null,null,null,null,43,"05/04/2018","Budget",9.9,"Compte Courant",null,"Addict Coiffure",5,"Loisirs","5.3","Coiffeur",null,null,2018,"avril","05/04/2018 Budget 9,9 Compte Courant  Addict Coiffure Loisirs Coiffeur   2018 avril"]
[null,null,null,null,null,null,null,null,null,null,null,null,null,null,null,null,null,null,null,null,null,null,null,null,null,null,null,44,"05/05/2018","Budget",9.9,"Compte Courant","","Addict Coiffure","5","Loisirs","5.3","Coiffeur","","",2018,"mai","05/05/2018 Budget 9,9 Compte Courant  Addict Coiffure Loisirs Coiffeur   2018 mai"]
[null,null,null,null,null,null,null,null,null,null,null,null,null,null,null,null,null,null,null,null,null,null,null,null,null,null,null,45,"06/01/2018","Sortie",17.84,"Compte Courant","","Courses",1,"Alimentation","1.6","Leader Price","","",2018,"janvier","06/01/2018 Sortie 17,84 Compte Courant  Courses Alimentation Leader Price   2018 janvier"]
[null,null,null,null,null,null,null,null,null,null,null,null,null,null,null,null,null,null,null,null,null,null,null,null,null,null,null,46,"01/01/2018","Budget",200,"Compte Courant",null,"Courses",1,"Alimentation","1.1","Leclerc",null,null,2018,"janvier","01/01/2018 Budget 200 Compte Courant  Courses Alimentation Leclerc   2018 janvier"]
[null,null,null,null,null,null,null,null,null,null,null,null,null,null,null,null,null,null,null,null,null,null,null,null,null,null,null,47,"01/02/2018","Budget",200,"Compte Courant",null,"Courses",1,"Alimentation","1.1","Leclerc",null,null,2018,"février","01/02/2018 Budget 200 Compte Courant  Courses Alimentation Leclerc   2018 février"]
[null,null,null,null,null,null,null,null,null,null,null,null,null,null,null,null,null,null,null,null,null,null,null,null,null,null,null,48,"01/03/2018","Budget",200,"Compte Courant",null,"Courses",1,"Alimentation","1.1","Leclerc",null,null,2018,"mars","01/03/2018 Budget 200 Compte Courant  Courses Alimentation Leclerc   2018 mars"]
[null,null,null,null,null,null,null,null,null,null,null,null,null,null,null,null,null,null,null,null,null,null,null,null,null,null,null,49,"01/04/2018","Budget",200,"Compte Courant",null,"Courses",1,"Alimentation","1.1","Leclerc",null,null,2018,"avril","01/04/2018 Budget 200 Compte Courant  Courses Alimentation Leclerc   2018 avril"]
[null,null,null,null,null,null,null,null,null,null,null,null,null,null,null,null,null,null,null,null,null,null,null,null,null,null,null,50,"01/05/2018","Budget",200,"Compte Courant",null,"Courses",1,"Alimentation","1.1","Leclerc",null,null,2018,"mai","01/05/2018 Budget 200 Compte Courant  Courses Alimentation Leclerc   2018 mai"]
[null,null,null,null,null,null,null,null,null,null,null,null,null,null,null,null,null,null,null,null,null,null,null,null,null,null,null,51,"01/06/2018","Budget",200,"Compte Courant",null,"Courses",1,"Alimentation","1.1","Leclerc",null,null,2018,"juin","01/06/2018 Budget 200 Compte Courant  Courses Alimentation Leclerc   2018 juin"]
[null,null,null,null,null,null,null,null,null,null,null,null,null,null,null,null,null,null,null,null,null,null,null,null,null,null,null,52,"01/07/2018","Budget",200,"Compte Courant",null,"Courses",1,"Alimentation","1.1","Leclerc",null,null,2018,"juillet","01/07/2018 Budget 200 Compte Courant  Courses Alimentation Leclerc   2018 juillet"]
[null,null,null,null,null,null,null,null,null,null,null,null,null,null,null,null,null,null,null,null,null,null,null,null,null,null,null,53,"01/08/2018","Budget",200,"Compte Courant",null,"Courses",1,"Alimentation","1.1","Leclerc",null,null,2018,"août","01/08/2018 Budget 200 Compte Courant  Courses Alimentation Leclerc   2018 août"]
[null,null,null,null,null,null,null,null,null,null,null,null,null,null,null,null,null,null,null,null,null,null,null,null,null,null,null,54,"01/09/2018","Budget",200,"Compte Courant",null,"Courses",1,"Alimentation","1.1","Leclerc",null,null,2018,"septembre","01/09/2018 Budget 200 Compte Courant  Courses Alimentation Leclerc   2018 septembre"]
[null,null,null,null,null,null,null,null,null,null,null,null,null,null,null,null,null,null,null,null,null,null,null,null,null,null,null,55,"01/10/2018","Budget",200,"Compte Courant",null,"Courses",1,"Alimentation","1.1","Leclerc",null,null,2018,"octobre","01/10/2018 Budget 200 Compte Courant  Courses Alimentation Leclerc   2018 octobre"]
[null,null,null,null,null,null,null,null,null,null,null,null,null,null,null,null,null,null,null,null,null,null,null,null,null,null,null,56,"01/11/2018","Budget",200,"Compte Courant",null,"Courses",1,"Alimentation","1.1","Leclerc",null,null,2018,"novembre","01/11/2018 Budget 200 Compte Courant  Courses Alimentation Leclerc   2018 novembre"]
[null,null,null,null,null,null,null,null,null,null,null,null,null,null,null,null,null,null,null,null,null,null,null,null,null,null,null,57,"01/12/2018","Budget",200,"Compte Courant",null,"Courses",1,"Alimentation","1.1","Leclerc",null,null,2018,"décembre","01/12/2018 Budget 200 Compte Courant  Courses Alimentation Leclerc   2018 décembre"]
[null,null,null,null,null,null,null,null,null,null,null,null,null,null,null,null,null,null,null,null,null,null,null,null,null,null,null,58,"01/01/2019","Budget",200,"Compte Courant",null,"Courses",1,"Alimentation","1.1","Leclerc",null,null,2019,"janvier","01/01/2019 Budget 200 Compte Courant  Courses Alimentation Leclerc   2019 janvier"]
[null,null,null,null,null,null,null,null,null,null,null,null,null,null,null,null,null,null,null,null,null,null,null,null,null,null,null,59,"01/01/2018","Budget",50,"Compte Courant",null,"Fast Food",1,"Alimentation","1.3","Fast-Food",null,null,2018,"janvier","01/01/2018 Budget 50 Compte Courant  Fast Food Alimentation Fast-Food   2018 janvier"]
[null,null,null,null,null,null,null,null,null,null,null,null,null,null,null,null,null,null,null,null,null,null,null,null,null,null,null,60,"01/02/2018","Budget",50,"Compte Courant",null,"Fast Food",1,"Alimentation","1.3","Fast-Food",null,null,2018,"février","01/02/2018 Budget 50 Compte Courant  Fast Food Alimentation Fast-Food   2018 février"]
[null,null,null,null,null,null,null,null,null,null,null,null,null,null,null,null,null,null,null,null,null,null,null,null,null,null,null,61,"01/03/2018","Budget",50,"Compte Courant",null,"Fast Food",1,"Alimentation","1.3","Fast-Food",null,null,2018,"mars","01/03/2018 Budget 50 Compte Courant  Fast Food Alimentation Fast-Food   2018 mars"]
[null,null,null,null,null,null,null,null,null,null,null,null,null,null,null,null,null,null,null,null,null,null,null,null,null,null,null,62,"01/04/2018","Budget",50,"Compte Courant",null,"Fast Food",1,"Alimentation","1.3","Fast-Food",null,null,2018,"avril","01/04/2018 Budget 50 Compte Courant  Fast Food Alimentation Fast-Food   2018 avril"]
[null,null,null,null,null,null,null,null,null,null,null,null,null,null,null,null,null,null,null,null,null,null,null,null,null,null,null,63,"01/05/2018","Budget",50,"Compte Courant",null,"Fast Food",1,"Alimentation","1.3","Fast-Food",null,null,2018,"mai","01/05/2018 Budget 50 Compte Courant  Fast Food Alimentation Fast-Food   2018 mai"]
[null,null,null,null,null,null,null,null,null,null,null,null,null,null,null,null,null,null,null,null,null,null,null,null,null,null,null,64,"01/06/2018","Budget",50,"Compte Courant",null,"Fast Food",1,"Alimentation","1.3","Fast-Food",null,null,2018,"juin","01/06/2018 Budget 50 Compte Courant  Fast Food Alimentation Fast-Food   2018 juin"]
[null,null,null,null,null,null,null,null,null,null,null,null,null,null,null,null,null,null,null,null,null,null,null,null,null,null,null,65,"01/07/2018","Budget",50,"Compte Courant",null,"Fast Food",1,"Alimentation","1.3","Fast-Food",null,null,2018,"juillet","01/07/2018 Budget 50 Compte Courant  Fast Food Alimentation Fast-Food   2018 juillet"]
[null,null,null,null,null,null,null,null,null,null,null,null,null,null,null,null,null,null,null,null,null,null,null,null,null,null,null,66,"01/08/2018","Budget",50,"Compte Courant",null,"Fast Food",1,"Alimentation","1.3","Fast-Food",null,null,2018,"août","01/08/2018 Budget 50 Compte Courant  Fast Food Alimentation Fast-Food   2018 août"]
[null,null,null,null,null,null,null,null,null,null,null,null,null,null,null,null,null,null,null,null,null,null,null,null,null,null,null,67,"01/09/2018","Budget",50,"Compte Courant",null,"Fast Food",1,"Alimentation","1.3","Fast-Food",null,null,2018,"septembre","01/09/2018 Budget 50 Compte Courant  Fast Food Alimentation Fast-Food   2018 septembre"]
[null,null,null,null,null,null,null,null,null,null,null,null,null,null,null,null,null,null,null,null,null,null,null,null,null,null,null,68,"01/10/2018","Budget",50,"Compte Courant",null,"Fast Food",1,"Alimentation","1.3","Fast-Food",null,null,2018,"octobre","01/10/2018 Budget 50 Compte Courant  Fast Food Alimentation Fast-Food   2018 octobre"]
[null,null,null,null,null,null,null,null,null,null,null,null,null,null,null,null,null,null,null,null,null,null,null,null,null,null,null,69,"01/11/2018","Budget",50,"Compte Courant",null,"Fast Food",1,"Alimentation","1.3","Fast-Food",null,null,2018,"novembre","01/11/2018 Budget 50 Compte Courant  Fast Food Alimentation Fast-Food   2018 novembre"]
[null,null,null,null,null,null,null,null,null,null,null,null,null,null,null,null,null,null,null,null,null,null,null,null,null,null,null,70,"01/12/2018","Budget",50,"Compte Courant",null,"Fast Food",1,"Alimentation","1.3","Fast-Food",null,null,2018,"décembre","01/12/2018 Budget 50 Compte Courant  Fast Food Alimentation Fast-Food   2018 décembre"]
[null,null,null,null,null,null,null,null,null,null,null,null,null,null,null,null,null,null,null,null,null,null,null,null,null,null,null,71,"01/01/2019","Budget",50,"Compte Courant",null,"Fast Food",1,"Alimentation","1.3","Fast-Food",null,null,2019,"janvier","01/01/2019 Budget 50 Compte Courant  Fast Food Alimentation Fast-Food   2019 janvier"]
[null,null,null,null,null,null,null,null,null,null,null,null,null,null,null,null,null,null,null,null,null,null,null,null,null,null,null,72,"01/01/2018","Budget",20,"Compte Courant",null,"L'entrepôt",1,"Alimentation","1.5","L'entrepôt",null,null,2018,"janvier","01/01/2018 Budget 20 Compte Courant  L'entrepôt Alimentation L'entrepôt   2018 janvier"]
[null,null,null,null,null,null,null,null,null,null,null,null,null,null,null,null,null,null,null,null,null,null,null,null,null,null,null,73,"01/02/2018","Budget",20,"Compte Courant",null,"L'entrepôt",1,"Alimentation","1.5","L'entrepôt",null,null,2018,"février","01/02/2018 Budget 20 Compte Courant  L'entrepôt Alimentation L'entrepôt   2018 février"]
[null,null,null,null,null,null,null,null,null,null,null,null,null,null,null,null,null,null,null,null,null,null,null,null,null,null,null,74,"01/03/2018","Budget",20,"Compte Courant",null,"L'entrepôt",1,"Alimentation","1.5","L'entrepôt",null,null,2018,"mars","01/03/2018 Budget 20 Compte Courant  L'entrepôt Alimentation L'entrepôt   2018 mars"]
[null,null,null,null,null,null,null,null,null,null,null,null,null,null,null,null,null,null,null,null,null,null,null,null,null,null,null,75,"01/04/2018","Budget",20,"Compte Courant",null,"L'entrepôt",1,"Alimentation","1.5","L'entrepôt",null,null,2018,"avril","01/04/2018 Budget 20 Compte Courant  L'entrepôt Alimentation L'entrepôt   2018 avril"]
[null,null,null,null,null,null,null,null,null,null,null,null,null,null,null,null,null,null,null,null,null,null,null,null,null,null,null,76,"01/05/2018","Budget",20,"Compte Courant",null,"L'entrepôt",1,"Alimentation","1.5","L'entrepôt",null,null,2018,"mai","01/05/2018 Budget 20 Compte Courant  L'entrepôt Alimentation L'entrepôt   2018 mai"]
[null,null,null,null,null,null,null,null,null,null,null,null,null,null,null,null,null,null,null,null,null,null,null,null,null,null,null,77,"01/06/2018","Budget",20,"Compte Courant",null,"L'entrepôt",1,"Alimentation","1.5","L'entrepôt",null,null,2018,"juin","01/06/2018 Budget 20 Compte Courant  L'entrepôt Alimentation L'entrepôt   2018 juin"]
[null,null,null,null,null,null,null,null,null,null,null,null,null,null,null,null,null,null,null,null,null,null,null,null,null,null,null,78,"01/07/2018","Budget",20,"Compte Courant",null,"L'entrepôt",1,"Alimentation","1.5","L'entrepôt",null,null,2018,"juillet","01/07/2018 Budget 20 Compte Courant  L'entrepôt Alimentation L'entrepôt   2018 juillet"]
[null,null,null,null,null,null,null,null,null,null,null,null,null,null,null,null,null,null,null,null,null,null,null,null,null,null,null,79,"01/08/2018","Budget",20,"Compte Courant",null,"L'entrepôt",1,"Alimentation","1.5","L'entrepôt",null,null,2018,"août","01/08/2018 Budget 20 Compte Courant  L'entrepôt Alimentation L'entrepôt   2018 août"]
[null,null,null,null,null,null,null,null,null,null,null,null,null,null,null,null,null,null,null,null,null,null,null,null,null,null,null,80,"01/09/2018","Budget",20,"Compte Courant",null,"L'entrepôt",1,"Alimentation","1.5","L'entrepôt",null,null,2018,"septembre","01/09/2018 Budget 20 Compte Courant  L'entrepôt Alimentation L'entrepôt   2018 septembre"]
[null,null,null,null,null,null,null,null,null,null,null,null,null,null,null,null,null,null,null,null,null,null,null,null,null,null,null,81,"01/10/2018","Budget",20,"Compte Courant",null,"L'entrepôt",1,"Alimentation","1.5","L'entrepôt",null,null,2018,"octobre","01/10/2018 Budget 20 Compte Courant  L'entrepôt Alimentation L'entrepôt   2018 octobre"]
[null,null,null,null,null,null,null,null,null,null,null,null,null,null,null,null,null,null,null,null,null,null,null,null,null,null,null,82,"01/11/2018","Budget",20,"Compte Courant",null,"L'entrepôt",1,"Alimentation","1.5","L'entrepôt",null,null,2018,"novembre","01/11/2018 Budget 20 Compte Courant  L'entrepôt Alimentation L'entrepôt   2018 novembre"]
[null,null,null,null,null,null,null,null,null,null,null,null,null,null,null,null,null,null,null,null,null,null,null,null,null,null,null,83,"01/12/2018","Budget",20,"Compte Courant",null,"L'entrepôt",1,"Alimentation","1.5","L'entrepôt",null,null,2018,"décembre","01/12/2018 Budget 20 Compte Courant  L'entrepôt Alimentation L'entrepôt   2018 décembre"]
[null,null,null,null,null,null,null,null,null,null,null,null,null,null,null,null,null,null,null,null,null,null,null,null,null,null,null,84,"01/01/2019","Budget",20,"Compte Courant",null,"L'entrepôt",1,"Alimentation","1.5","L'entrepôt",null,null,2019,"janvier","01/01/2019 Budget 20 Compte Courant  L'entrepôt Alimentation L'entrepôt   2019 janvier"]
[null,null,null,null,null,null,null,null,null,null,null,null,null,null,null,null,null,null,null,null,null,null,null,null,null,null,null,85,"01/01/2018","Budget",15,"Compte Courant",null,"Leader Price Courses",1,"Alimentation","1.6","Leader Price",null,null,2018,"janvier","01/01/2018 Budget 15 Compte Courant  Leader Price Courses Alimentation Leader Price   2018 janvier"]
[null,null,null,null,null,null,null,null,null,null,null,null,null,null,null,null,null,null,null,null,null,null,null,null,null,null,null,86,"01/02/2018","Budget",15,"Compte Courant",null,"Leader Price Courses",1,"Alimentation","1.6","Leader Price",null,null,2018,"février","01/02/2018 Budget 15 Compte Courant  Leader Price Courses Alimentation Leader Price   2018 février"]
[null,null,null,null,null,null,null,null,null,null,null,null,null,null,null,null,null,null,null,null,null,null,null,null,null,null,null,87,"01/03/2018","Budget",15,"Compte Courant",null,"Leader Price Courses",1,"Alimentation","1.6","Leader Price",null,null,2018,"mars","01/03/2018 Budget 15 Compte Courant  Leader Price Courses Alimentation Leader Price   2018 mars"]
[null,null,null,null,null,null,null,null,null,null,null,null,null,null,null,null,null,null,null,null,null,null,null,null,null,null,null,88,"01/04/2018","Budget",15,"Compte Courant",null,"Leader Price Courses",1,"Alimentation","1.6","Leader Price",null,null,2018,"avril","01/04/2018 Budget 15 Compte Courant  Leader Price Courses Alimentation Leader Price   2018 avril"]
[null,null,null,null,null,null,null,null,null,null,null,null,null,null,null,null,null,null,null,null,null,null,null,null,null,null,null,89,"01/05/2018","Budget",15,"Compte Courant",null,"Leader Price Courses",1,"Alimentation","1.6","Leader Price",null,null,2018,"mai","01/05/2018 Budget 15 Compte Courant  Leader Price Courses Alimentation Leader Price   2018 mai"]
[null,null,null,null,null,null,null,null,null,null,null,null,null,null,null,null,null,null,null,null,null,null,null,null,null,null,null,90,"01/06/2018","Budget",15,"Compte Courant",null,"Leader Price Courses",1,"Alimentation","1.6","Leader Price",null,null,2018,"juin","01/06/2018 Budget 15 Compte Courant  Leader Price Courses Alimentation Leader Price   2018 juin"]
[null,null,null,null,null,null,null,null,null,null,null,null,null,null,null,null,null,null,null,null,null,null,null,null,null,null,null,91,"01/07/2018","Budget",15,"Compte Courant",null,"Leader Price Courses",1,"Alimentation","1.6","Leader Price",null,null,2018,"juillet","01/07/2018 Budget 15 Compte Courant  Leader Price Courses Alimentation Leader Price   2018 juillet"]
[null,null,null,null,null,null,null,null,null,null,null,null,null,null,null,null,null,null,null,null,null,null,null,null,null,null,null,92,"01/08/2018","Budget",15,"Compte Courant",null,"Leader Price Courses",1,"Alimentation","1.6","Leader Price",null,null,2018,"août","01/08/2018 Budget 15 Compte Courant  Leader Price Courses Alimentation Leader Price   2018 août"]
[null,null,null,null,null,null,null,null,null,null,null,null,null,null,null,null,null,null,null,null,null,null,null,null,null,null,null,93,"01/09/2018","Budget",15,"Compte Courant",null,"Leader Price Courses",1,"Alimentation","1.6","Leader Price",null,null,2018,"septembre","01/09/2018 Budget 15 Compte Courant  Leader Price Courses Alimentation Leader Price   2018 septembre"]
[null,null,null,null,null,null,null,null,null,null,null,null,null,null,null,null,null,null,null,null,null,null,null,null,null,null,null,94,"01/10/2018","Budget",15,"Compte Courant",null,"Leader Price Courses",1,"Alimentation","1.6","Leader Price",null,null,2018,"octobre","01/10/2018 Budget 15 Compte Courant  Leader Price Courses Alimentation Leader Price   2018 octobre"]
[null,null,null,null,null,null,null,null,null,null,null,null,null,null,null,null,null,null,null,null,null,null,null,null,null,null,null,95,"01/11/2018","Budget",15,"Compte Courant",null,"Leader Price Courses",1,"Alimentation","1.6","Leader Price",null,null,2018,"novembre","01/11/2018 Budget 15 Compte Courant  Leader Price Courses Alimentation Leader Price   2018 novembre"]
[null,null,null,null,null,null,null,null,null,null,null,null,null,null,null,null,null,null,null,null,null,null,null,null,null,null,null,96,"01/12/2018","Budget",15,"Compte Courant",null,"Leader Price Courses",1,"Alimentation","1.6","Leader Price",null,null,2018,"décembre","01/12/2018 Budget 15 Compte Courant  Leader Price Courses Alimentation Leader Price   2018 décembre"]
[null,null,null,null,null,null,null,null,null,null,null,null,null,null,null,null,null,null,null,null,null,null,null,null,null,null,null,97,"01/01/2019","Budget",15,"Compte Courant",null,"Leader Price Courses",1,"Alimentation","1.6","Leader Price",null,null,2019,"janvier","01/01/2019 Budget 15 Compte Courant  Leader Price Courses Alimentation Leader Price   2019 janvier"]
[null,null,null,null,null,null,null,null,null,null,null,null,null,null,null,null,null,null,null,null,null,null,null,null,null,null,null,98,"09/01/2018","Sortie",150,"Compte Courant","","Fumette Maëva",10,"Maëva","10.1","Fumette","","",2018,"janvier","09/01/2018 Sortie 150 Compte Courant  Fumette Maëva Maëva Fumette   2018 janvier"]
[null,null,null,null,null,null,null,null,null,null,null,null,null,null,null,null,null,null,null,null,null,null,null,null,null,null,null,99,"10/01/2018","Sortie",5.16,"Compte Courant","","Fruits",1,"Alimentation","1.5","L'entrepôt","","",2018,"janvier","10/01/2018 Sortie 5,16 Compte Courant  Fruits Alimentation L'entrepôt   2018 janvier"]
[null,null,null,null,null,null,null,null,null,null,null,null,null,null,null,null,null,null,null,null,null,null,null,null,null,null,null,100,"05/01/2018","Sortie",30,"Compte Courant","","Fumette",10,"Maëva","10.1","Fumette","","",2018,"janvier","05/01/2018 Sortie 30 Compte Courant  Fumette Maëva Fumette   2018 janvier"]
[null,null,null,null,null,null,null,null,null,null,null,null,null,null,null,null,null,null,null,null,null,null,null,null,null,null,null,101,"09/01/2018","Sortie",32.44,"Compte Courant","","Courses",1,"Alimentation","1.1","Leclerc","","",2018,"janvier","09/01/2018 Sortie 32,44 Compte Courant  Courses Alimentation Leclerc   2018 janvier"]
[null,null,null,null,null,null,null,null,null,null,null,null,null,null,null,null,null,null,null,null,null,null,null,null,null,null,null,102,"10/01/2018","Entrée",7.5,"Compte Courant","","AXA",3,"Remboursement","3.1","Medecin","","",2018,"janvier","10/01/2018 Entrée 7,5 Compte Courant  AXA Remboursement Medecin   2018 janvier"]
[null,null,null,null,null,null,null,null,null,null,null,null,null,null,null,null,null,null,null,null,null,null,null,null,null,null,null,103,"01/01/2018","Budget",250,"Compte Courant",null,"Fumette",10,"Maëva","10.1","Fumette",null,null,2018,"janvier","01/01/2018 Budget 250 Compte Courant  Fumette Maëva Fumette   2018 janvier"]
[null,null,null,null,null,null,null,null,null,null,null,null,null,null,null,null,null,null,null,null,null,null,null,null,null,null,null,104,"01/02/2018","Budget",250,"Compte Courant",null,"Fumette",10,"Maëva","10.1","Fumette",null,null,2018,"février","01/02/2018 Budget 250 Compte Courant  Fumette Maëva Fumette   2018 février"]
[null,null,null,null,null,null,null,null,null,null,null,null,null,null,null,null,null,null,null,null,null,null,null,null,null,null,null,105,"01/03/2018","Budget",250,"Compte Courant",null,"Fumette",10,"Maëva","10.1","Fumette",null,null,2018,"mars","01/03/2018 Budget 250 Compte Courant  Fumette Maëva Fumette   2018 mars"]
[null,null,null,null,null,null,null,null,null,null,null,null,null,null,null,null,null,null,null,null,null,null,null,null,null,null,null,106,"01/04/2018","Budget",250,"Compte Courant",null,"Fumette",10,"Maëva","10.1","Fumette",null,null,2018,"avril","01/04/2018 Budget 250 Compte Courant  Fumette Maëva Fumette   2018 avril"]
[null,null,null,null,null,null,null,null,null,null,null,null,null,null,null,null,null,null,null,null,null,null,null,null,null,null,null,107,"01/05/2018","Budget",250,"Compte Courant",null,"Fumette",10,"Maëva","10.1","Fumette",null,null,2018,"mai","01/05/2018 Budget 250 Compte Courant  Fumette Maëva Fumette   2018 mai"]
[null,null,null,null,null,null,null,null,null,null,null,null,null,null,null,null,null,null,null,null,null,null,null,null,null,null,null,108,"01/06/2018","Budget",250,"Compte Courant",null,"Fumette",10,"Maëva","10.1","Fumette",null,null,2018,"juin","01/06/2018 Budget 250 Compte Courant  Fumette Maëva Fumette   2018 juin"]
[null,null,null,null,null,null,null,null,null,null,null,null,null,null,null,null,null,null,null,null,null,null,null,null,null,null,null,109,"01/07/2018","Budget",250,"Compte Courant",null,"Fumette",10,"Maëva","10.1","Fumette",null,null,2018,"juillet","01/07/2018 Budget 250 Compte Courant  Fumette Maëva Fumette   2018 juillet"]
[null,null,null,null,null,null,null,null,null,null,null,null,null,null,null,null,null,null,null,null,null,null,null,null,null,null,null,110,"01/08/2018","Budget",250,"Compte Courant",null,"Fumette",10,"Maëva","10.1","Fumette",null,null,2018,"août","01/08/2018 Budget 250 Compte Courant  Fumette Maëva Fumette   2018 août"]
[null,null,null,null,null,null,null,null,null,null,null,null,null,null,null,null,null,null,null,null,null,null,null,null,null,null,null,111,"01/09/2018","Budget",250,"Compte Courant",null,"Fumette",10,"Maëva","10.1","Fumette",null,null,2018,"septembre","01/09/2018 Budget 250 Compte Courant  Fumette Maëva Fumette   2018 septembre"]
[null,null,null,null,null,null,null,null,null,null,null,null,null,null,null,null,null,null,null,null,null,null,null,null,null,null,null,112,"01/10/2018","Budget",250,"Compte Courant",null,"Fumette",10,"Maëva","10.1","Fumette",null,null,2018,"octobre","01/10/2018 Budget 250 Compte Courant  Fumette Maëva Fumette   2018 octobre"]
[null,null,null,null,null,null,null,null,null,null,null,null,null,null,null,null,null,null,null,null,null,null,null,null,null,null,null,113,"01/11/2018","Budget",250,"Compte Courant",null,"Fumette",10,"Maëva","10.1","Fumette",null,null,2018,"novembre","01/11/2018 Budget 250 Compte Courant  Fumette Maëva Fumette   2018 novembre"]
[null,null,null,null,null,null,null,null,null,null,null,null,null,null,null,null,null,null,null,null,null,null,null,null,null,null,null,114,"01/12/2018","Budget",250,"Compte Courant",null,"Fumette",10,"Maëva","10.1","Fumette",null,null,2018,"décembre","01/12/2018 Budget 250 Compte Courant  Fumette Maëva Fumette   2018 décembre"]
[null,null,null,null,null,null,null,null,null,null,null,null,null,null,null,null,null,null,null,null,null,null,null,null,null,null,null,115,"01/01/2019","Budget",250,"Compte Courant",null,"Fumette",10,"Maëva","10.1","Fumette",null,null,2019,"janvier","01/01/2019 Budget 250 Compte Courant  Fumette Maëva Fumette   2019 janvier"]
[null,null,null,null,null,null,null,null,null,null,null,null,null,null,null,null,null,null,null,null,null,null,null,null,null,null,null,116,"12/01/2018","Sortie",10.01,"Compte Courant","","Changement Phares First Stop",3,"Transport","3.3","Entretien","","",2018,"janvier","12/01/2018 Sortie 10,01 Compte Courant  Changement Phares First Stop Transport Entretien   2018 janvier"]
[null,null,null,null,null,null,null,null,null,null,null,null,null,null,null,null,null,null,null,null,null,null,null,null,null,null,null,117,"13/01/2018","Sortie",11.7,"Compte Courant","","Subway",1,"Alimentation","1.3","Fast-Food","","",2018,"janvier","13/01/2018 Sortie 11,7 Compte Courant  Subway Alimentation Fast-Food   2018 janvier"]
[null,null,null,null,null,null,null,null,null,null,null,null,null,null,null,null,null,null,null,null,null,null,null,null,null,null,null,118,"13/01/2018","Sortie",9.02,"Compte Courant","","Courses",1,"Alimentation","1.6","Leader Price","","",2018,"janvier","13/01/2018 Sortie 9,02 Compte Courant  Courses Alimentation Leader Price   2018 janvier"]
[null,null,null,null,null,null,null,null,null,null,null,null,null,null,null,null,null,null,null,null,null,null,null,null,null,null,null,119,"13/01/2018","Sortie",55,"Compte Courant","","SPA Nîmes",8,"Vacances","8.3","Activités","","",2018,"janvier","13/01/2018 Sortie 55 Compte Courant  SPA Nîmes Vacances Activités   2018 janvier"]
[null,null,null,null,null,null,null,null,null,null,null,null,null,null,null,null,null,null,null,null,null,null,null,null,null,null,null,120,"14/01/2018","Sortie",50.36,"Compte Courant","","Essence",3,"Transport","3.1","Essence","","",2018,"janvier","14/01/2018 Sortie 50,36 Compte Courant  Essence Transport Essence   2018 janvier"]
[null,null,null,null,null,null,null,null,null,null,null,null,null,null,null,null,null,null,null,null,null,null,null,null,null,null,null,121,"01/01/2018","Budget",150,"Compte Courant",null,"Essence",3,"Transport","3.1","Essence",null,null,2018,"janvier","01/01/2018 Budget 150 Compte Courant  Essence Transport Essence   2018 janvier"]
[null,null,null,null,null,null,null,null,null,null,null,null,null,null,null,null,null,null,null,null,null,null,null,null,null,null,null,122,"01/02/2018","Budget",150,"Compte Courant",null,"Essence",3,"Transport","3.1","Essence",null,null,2018,"février","01/02/2018 Budget 150 Compte Courant  Essence Transport Essence   2018 février"]
[null,null,null,null,null,null,null,null,null,null,null,null,null,null,null,null,null,null,null,null,null,null,null,null,null,null,null,123,"01/03/2018","Budget",150,"Compte Courant",null,"Essence",3,"Transport","3.1","Essence",null,null,2018,"mars","01/03/2018 Budget 150 Compte Courant  Essence Transport Essence   2018 mars"]
[null,null,null,null,null,null,null,null,null,null,null,null,null,null,null,null,null,null,null,null,null,null,null,null,null,null,null,124,"01/04/2018","Budget",150,"Compte Courant",null,"Essence",3,"Transport","3.1","Essence",null,null,2018,"avril","01/04/2018 Budget 150 Compte Courant  Essence Transport Essence   2018 avril"]
[null,null,null,null,null,null,null,null,null,null,null,null,null,null,null,null,null,null,null,null,null,null,null,null,null,null,null,125,"01/05/2018","Budget",150,"Compte Courant",null,"Essence",3,"Transport","3.1","Essence",null,null,2018,"mai","01/05/2018 Budget 150 Compte Courant  Essence Transport Essence   2018 mai"]
[null,null,null,null,null,null,null,null,null,null,null,null,null,null,null,null,null,null,null,null,null,null,null,null,null,null,null,126,"01/06/2018","Budget",150,"Compte Courant",null,"Essence",3,"Transport","3.1","Essence",null,null,2018,"juin","01/06/2018 Budget 150 Compte Courant  Essence Transport Essence   2018 juin"]
[null,null,null,null,null,null,null,null,null,null,null,null,null,null,null,null,null,null,null,null,null,null,null,null,null,null,null,127,"01/07/2018","Budget",150,"Compte Courant",null,"Essence",3,"Transport","3.1","Essence",null,null,2018,"juillet","01/07/2018 Budget 150 Compte Courant  Essence Transport Essence   2018 juillet"]
[null,null,null,null,null,null,null,null,null,null,null,null,null,null,null,null,null,null,null,null,null,null,null,null,null,null,null,128,"01/08/2018","Budget",150,"Compte Courant",null,"Essence",3,"Transport","3.1","Essence",null,null,2018,"août","01/08/2018 Budget 150 Compte Courant  Essence Transport Essence   2018 août"]
[null,null,null,null,null,null,null,null,null,null,null,null,null,null,null,null,null,null,null,null,null,null,null,null,null,null,null,129,"01/09/2018","Budget",150,"Compte Courant",null,"Essence",3,"Transport","3.1","Essence",null,null,2018,"septembre","01/09/2018 Budget 150 Compte Courant  Essence Transport Essence   2018 septembre"]
[null,null,null,null,null,null,null,null,null,null,null,null,null,null,null,null,null,null,null,null,null,null,null,null,null,null,null,130,"01/10/2018","Budget",150,"Compte Courant",null,"Essence",3,"Transport","3.1","Essence",null,null,2018,"octobre","01/10/2018 Budget 150 Compte Courant  Essence Transport Essence   2018 octobre"]
[null,null,null,null,null,null,null,null,null,null,null,null,null,null,null,null,null,null,null,null,null,null,null,null,null,null,null,131,"01/11/2018","Budget",150,"Compte Courant",null,"Essence",3,"Transport","3.1","Essence",null,null,2018,"novembre","01/11/2018 Budget 150 Compte Courant  Essence Transport Essence   2018 novembre"]
[null,null,null,null,null,null,null,null,null,null,null,null,null,null,null,null,null,null,null,null,null,null,null,null,null,null,null,132,"01/12/2018","Budget",150,"Compte Courant",null,"Essence",3,"Transport","3.1","Essence",null,null,2018,"décembre","01/12/2018 Budget 150 Compte Courant  Essence Transport Essence   2018 décembre"]
[null,null,null,null,null,null,null,null,null,null,null,null,null,null,null,null,null,null,null,null,null,null,null,null,null,null,null,133,"01/01/2019","Budget",150,"Compte Courant",null,"Essence",3,"Transport","3.1","Essence",null,null,2019,"janvier","01/01/2019 Budget 150 Compte Courant  Essence Transport Essence   2019 janvier"]
[null,null,null,null,null,null,null,null,null,null,null,null,null,null,null,null,null,null,null,null,null,null,null,null,null,null,null,134,"15/01/2018","Sortie",16.5,"Compte Courant","","Cig + Briquet",10,"Maëva","10.1","Fumette","","",2018,"janvier","15/01/2018 Sortie 16,5 Compte Courant  Cig + Briquet Maëva Fumette   2018 janvier"]
[null,null,null,null,null,null,null,null,null,null,null,null,null,null,null,null,null,null,null,null,null,null,null,null,null,null,null,135,"16/01/2018","Sortie",9.9,"Compte Courant","","Médicament Verrue",11,"Soins","11.2","Frais Pharmaceutiques","","",2018,"janvier","16/01/2018 Sortie 9,9 Compte Courant  Médicament Verrue Soins Frais Pharmaceutiques   2018 janvier"]
[null,null,null,null,null,null,null,null,null,null,null,null,null,null,null,null,null,null,null,null,null,null,null,null,null,null,null,136,"17/01/2018","Sortie",108.7,"Compte Courant","","Réparation Durite C3",3,"Transport","3.3","Entretien","","",2018,"janvier","17/01/2018 Sortie 108,7 Compte Courant  Réparation Durite C3 Transport Entretien   2018 janvier"]
[null,null,null,null,null,null,null,null,null,null,null,null,null,null,null,null,null,null,null,null,null,null,null,null,null,null,null,137,"18/01/2018","Sortie",0.99,"Compte Courant","","Boursorama",9,"Frais Bancaire","9.1","Frais de Gestion de Compte","","",2018,"janvier","18/01/2018 Sortie 0,99 Compte Courant  Boursorama Frais Bancaire Frais de Gestion de Compte   2018 janvier"]
[null,null,null,null,null,null,null,null,null,null,null,null,null,null,null,null,null,null,null,null,null,null,null,null,null,null,null,138,"17/01/2018","Sortie",48.11,"Compte Courant","","Courses",1,"Alimentation","1.1","Leclerc","","",2018,"janvier","17/01/2018 Sortie 48,11 Compte Courant  Courses Alimentation Leclerc   2018 janvier"]
[null,null,null,null,null,null,null,null,null,null,null,null,null,null,null,null,null,null,null,null,null,null,null,null,null,null,null,139,"18/01/2018","Entrée",318,"Compte Courant","","Bourse Janvier",2,"CAF","2.2","Bourses","","",2018,"janvier","18/01/2018 Entrée 318 Compte Courant  Bourse Janvier CAF Bourses   2018 janvier"]
[null,null,null,null,null,null,null,null,null,null,null,null,null,null,null,null,null,null,null,null,null,null,null,null,null,null,null,140,"01/01/2018","Budget",1,"Compte Courant",null,"Boursorama",9,"Frais Bancaire","9.1","Frais de Gestion de Compte",null,null,2018,"janvier","01/01/2018 Budget 1 Compte Courant  Boursorama Frais Bancaire Frais de Gestion de Compte   2018 janvier"]
[null,null,null,null,null,null,null,null,null,null,null,null,null,null,null,null,null,null,null,null,null,null,null,null,null,null,null,141,"01/02/2018","Budget",1,"Compte Courant",null,"Boursorama",9,"Frais Bancaire","9.1","Frais de Gestion de Compte",null,null,2018,"février","01/02/2018 Budget 1 Compte Courant  Boursorama Frais Bancaire Frais de Gestion de Compte   2018 février"]
[null,null,null,null,null,null,null,null,null,null,null,null,null,null,null,null,null,null,null,null,null,null,null,null,null,null,null,142,"01/03/2018","Budget",1,"Compte Courant",null,"Boursorama",9,"Frais Bancaire","9.1","Frais de Gestion de Compte",null,null,2018,"mars","01/03/2018 Budget 1 Compte Courant  Boursorama Frais Bancaire Frais de Gestion de Compte   2018 mars"]
[null,null,null,null,null,null,null,null,null,null,null,null,null,null,null,null,null,null,null,null,null,null,null,null,null,null,null,143,"01/04/2018","Budget",1,"Compte Courant",null,"Boursorama",9,"Frais Bancaire","9.1","Frais de Gestion de Compte",null,null,2018,"avril","01/04/2018 Budget 1 Compte Courant  Boursorama Frais Bancaire Frais de Gestion de Compte   2018 avril"]
[null,null,null,null,null,null,null,null,null,null,null,null,null,null,null,null,null,null,null,null,null,null,null,null,null,null,null,144,"01/05/2018","Budget",1,"Compte Courant",null,"Boursorama",9,"Frais Bancaire","9.1","Frais de Gestion de Compte",null,null,2018,"mai","01/05/2018 Budget 1 Compte Courant  Boursorama Frais Bancaire Frais de Gestion de Compte   2018 mai"]
[null,null,null,null,null,null,null,null,null,null,null,null,null,null,null,null,null,null,null,null,null,null,null,null,null,null,null,145,"01/06/2018","Budget",1,"Compte Courant",null,"Boursorama",9,"Frais Bancaire","9.1","Frais de Gestion de Compte",null,null,2018,"juin","01/06/2018 Budget 1 Compte Courant  Boursorama Frais Bancaire Frais de Gestion de Compte   2018 juin"]
[null,null,null,null,null,null,null,null,null,null,null,null,null,null,null,null,null,null,null,null,null,null,null,null,null,null,null,146,"01/07/2018","Budget",1,"Compte Courant",null,"Boursorama",9,"Frais Bancaire","9.1","Frais de Gestion de Compte",null,null,2018,"juillet","01/07/2018 Budget 1 Compte Courant  Boursorama Frais Bancaire Frais de Gestion de Compte   2018 juillet"]
[null,null,null,null,null,null,null,null,null,null,null,null,null,null,null,null,null,null,null,null,null,null,null,null,null,null,null,147,"01/08/2018","Budget",1,"Compte Courant",null,"Boursorama",9,"Frais Bancaire","9.1","Frais de Gestion de Compte",null,null,2018,"août","01/08/2018 Budget 1 Compte Courant  Boursorama Frais Bancaire Frais de Gestion de Compte   2018 août"]
[null,null,null,null,null,null,null,null,null,null,null,null,null,null,null,null,null,null,null,null,null,null,null,null,null,null,null,148,"01/09/2018","Budget",1,"Compte Courant",null,"Boursorama",9,"Frais Bancaire","9.1","Frais de Gestion de Compte",null,null,2018,"septembre","01/09/2018 Budget 1 Compte Courant  Boursorama Frais Bancaire Frais de Gestion de Compte   2018 septembre"]
[null,null,null,null,null,null,null,null,null,null,null,null,null,null,null,null,null,null,null,null,null,null,null,null,null,null,null,149,"01/10/2018","Budget",1,"Compte Courant",null,"Boursorama",9,"Frais Bancaire","9.1","Frais de Gestion de Compte",null,null,2018,"octobre","01/10/2018 Budget 1 Compte Courant  Boursorama Frais Bancaire Frais de Gestion de Compte   2018 octobre"]
[null,null,null,null,null,null,null,null,null,null,null,null,null,null,null,null,null,null,null,null,null,null,null,null,null,null,null,150,"01/11/2018","Budget",1,"Compte Courant",null,"Boursorama",9,"Frais Bancaire","9.1","Frais de Gestion de Compte",null,null,2018,"novembre","01/11/2018 Budget 1 Compte Courant  Boursorama Frais Bancaire Frais de Gestion de Compte   2018 novembre"]
[null,null,null,null,null,null,null,null,null,null,null,null,null,null,null,null,null,null,null,null,null,null,null,null,null,null,null,151,"01/12/2018","Budget",1,"Compte Courant",null,"Boursorama",9,"Frais Bancaire","9.1","Frais de Gestion de Compte",null,null,2018,"décembre","01/12/2018 Budget 1 Compte Courant  Boursorama Frais Bancaire Frais de Gestion de Compte   2018 décembre"]
[null,null,null,null,null,null,null,null,null,null,null,null,null,null,null,null,null,null,null,null,null,null,null,null,null,null,null,152,"01/01/2019","Budget",1,"Compte Courant",null,"Boursorama",9,"Frais Bancaire","9.1","Frais de Gestion de Compte",null,null,2019,"janvier","01/01/2019 Budget 1 Compte Courant  Boursorama Frais Bancaire Frais de Gestion de Compte   2019 janvier"]
[null,null,null,null,null,null,null,null,null,null,null,null,null,null,null,null,null,null,null,null,null,null,null,null,null,null,null,153,"19/01/2018","Sortie",74.5,"Compte Courant","","Contrôle Technique",3,"Transport","3.3","Entretien","","",2018,"janvier","19/01/2018 Sortie 74,5 Compte Courant  Contrôle Technique Transport Entretien   2018 janvier"]
[null,null,null,null,null,null,null,null,null,null,null,null,null,null,null,null,null,null,null,null,null,null,null,null,null,null,null,154,"20/01/2018","Sortie",9.3000000000000007,"Compte Courant","","Subway",1,"Alimentation","1.3","Fast-Food","","",2018,"janvier","20/01/2018 Sortie 9,3 Compte Courant  Subway Alimentation Fast-Food   2018 janvier"]
[null,null,null,null,null,null,null,null,null,null,null,null,null,null,null,null,null,null,null,null,null,null,null,null,null,null,null,155,"20/01/2018","Sortie",98.48,"Compte Courant","","Courses Bio Auchan",1,"Alimentation","1.2","Auchan","","",2018,"janvier","20/01/2018 Sortie 98,48 Compte Courant  Courses Bio Auchan Alimentation Auchan   2018 janvier"]
[null,null,null,null,null,null,null,null,null,null,null,null,null,null,null,null,null,null,null,null,null,null,null,null,null,null,null,156,"20/01/2018","Sortie",4.9800000000000004,"Compte Courant","","Balance Cuisine",1,"Alimentation","1.8","Autre Dépense Alimentation","","",2018,"janvier","20/01/2018 Sortie 4,98 Compte Courant  Balance Cuisine Alimentation Autre Dépense Alimentation   2018 janvier"]
[null,null,null,null,null,null,null,null,null,null,null,null,null,null,null,null,null,null,null,null,null,null,null,null,null,null,null,157,"21/01/2018","Sortie",86.85,"Compte Courant","","Compléments Alimentaires",1,"Alimentation","1.8","Autre Dépense Alimentation","","",2018,"janvier","21/01/2018 Sortie 86,85 Compte Courant  Compléments Alimentaires Alimentation Autre Dépense Alimentation   2018 janvier"]
[null,null,null,null,null,null,null,null,null,null,null,null,null,null,null,null,null,null,null,null,null,null,null,null,null,null,null,158,"22/01/2018","Sortie",15.5,"Compte Courant","","Cig",10,"Maëva","10.1","Fumette","","",2018,"janvier","22/01/2018 Sortie 15,5 Compte Courant  Cig Maëva Fumette   2018 janvier"]
[null,null,null,null,null,null,null,null,null,null,null,null,null,null,null,null,null,null,null,null,null,null,null,null,null,null,null,159,"22/01/2018","Sortie",39,"Compte Courant","","Abonnement Salle Sport",5,"Loisirs","5.4","Sport","","",2018,"janvier","22/01/2018 Sortie 39 Compte Courant  Abonnement Salle Sport Loisirs Sport   2018 janvier"]
[null,null,null,null,null,null,null,null,null,null,null,null,null,null,null,null,null,null,null,null,null,null,null,null,null,null,null,160,"22/01/2018","Sortie",150,"Compte Courant","","Shit",10,"Maëva","10.1","Fumette","","",2018,"janvier","22/01/2018 Sortie 150 Compte Courant  Shit Maëva Fumette   2018 janvier"]
[null,null,null,null,null,null,null,null,null,null,null,null,null,null,null,null,null,null,null,null,null,null,null,null,null,null,null,161,"24/01/2018","Sortie",5.17,"Compte Courant","","Sandwich",1,"Alimentation","1.1","Leclerc","","",2018,"janvier","24/01/2018 Sortie 5,17 Compte Courant  Sandwich Alimentation Leclerc   2018 janvier"]
[null,null,null,null,null,null,null,null,null,null,null,null,null,null,null,null,null,null,null,null,null,null,null,null,null,null,null,162,"25/01/2018","Sortie",19.989999999999998,"Compte Courant","","Abonnement Tél",6,"Internet - Téléphonie","6.1","Free Mobile","","",2018,"janvier","25/01/2018 Sortie 19,99 Compte Courant  Abonnement Tél Internet - Téléphonie Free Mobile   2018 janvier"]
[null,null,null,null,null,null,null,null,null,null,null,null,null,null,null,null,null,null,null,null,null,null,null,null,null,null,null,163,"25/01/2018","transfert",-200,"Livret A",null,"Virement",null,"",null,"",null,null,2018,"janvier","25/01/2018 transfert -200 Livret A  Virement     2018 janvier"]
[null,null,null,null,null,null,null,null,null,null,null,null,null,null,null,null,null,null,null,null,null,null,null,null,null,null,null,164,"25/01/2018","transfert",200,"Compte Courant",null,"Virement",null,"",null,"",null,null,2018,"janvier","25/01/2018 transfert 200 Compte Courant  Virement     2018 janvier"]
[null,null,null,null,null,null,null,null,null,null,null,null,null,null,null,null,null,null,null,null,null,null,null,null,null,null,null,165,"25/01/2018","Sortie",193.57,"Compte Courant","","Entretien C3",3,"Transport","3.3","Entretien","","",2018,"janvier","25/01/2018 Sortie 193,57 Compte Courant  Entretien C3 Transport Entretien   2018 janvier"]
[null,null,null,null,null,null,null,null,null,null,null,null,null,null,null,null,null,null,null,null,null,null,null,null,null,null,null,166,"23/01/2018","Sortie",1.62,"Compte Courant","","Bananes",1,"Alimentation","1.5","L'entrepôt","","",2018,"janvier","23/01/2018 Sortie 1,62 Compte Courant  Bananes Alimentation L'entrepôt   2018 janvier"]
[null,null,null,null,null,null,null,null,null,null,null,null,null,null,null,null,null,null,null,null,null,null,null,null,null,null,null,167,"27/01/2018","Sortie",44.39,"Compte Courant","","Courses",1,"Alimentation","1.2","Auchan","","",2018,"janvier","27/01/2018 Sortie 44,39 Compte Courant  Courses Alimentation Auchan   2018 janvier"]
[null,null,null,null,null,null,null,null,null,null,null,null,null,null,null,null,null,null,null,null,null,null,null,null,null,null,null,168,"27/01/2018","Sortie",11,"Compte Courant","","Mcdo",1,"Alimentation","1.3","Fast-Food","","",2018,"janvier","27/01/2018 Sortie 11 Compte Courant  Mcdo Alimentation Fast-Food   2018 janvier"]
[null,null,null,null,null,null,null,null,null,null,null,null,null,null,null,null,null,null,null,null,null,null,null,null,null,null,null,169,"29/01/2018","Entrée",9.41,"Compte Courant","","Air Alpha",3,"Remboursement","3.4","Autre Remboursement","","",2018,"janvier","29/01/2018 Entrée 9,41 Compte Courant  Air Alpha Remboursement Autre Remboursement   2018 janvier"]
[null,null,null,null,null,null,null,null,null,null,null,null,null,null,null,null,null,null,null,null,null,null,null,null,null,null,null,170,"29/01/2018","Entrée",136.41,"Compte Courant","","Remboursement Maman Air Alpha",3,"Remboursement","3.4","Autre Remboursement","","",2018,"janvier","29/01/2018 Entrée 136,41 Compte Courant  Remboursement Maman Air Alpha Remboursement Autre Remboursement   2018 janvier"]
[null,null,null,null,null,null,null,null,null,null,null,null,null,null,null,null,null,null,null,null,null,null,null,null,null,null,null,171,"29/01/2018","Entrée",152.96,"Compte Courant","","Remboursement Air Alpha Maman",3,"Remboursement","3.4","Autre Remboursement","","",2018,"janvier","29/01/2018 Entrée 152,96 Compte Courant  Remboursement Air Alpha Maman Remboursement Autre Remboursement   2018 janvier"]
[null,null,null,null,null,null,null,null,null,null,null,null,null,null,null,null,null,null,null,null,null,null,null,null,null,null,null,172,"01/02/2018","Sortie",846.29,"Compte Courant","","Air Alpha Voiture",7,"Assurance","7.1","Air Alpha Auto","","",2018,"février","01/02/2018 Sortie 846,29 Compte Courant  Air Alpha Voiture Assurance Air Alpha Auto   2018 février"]
[null,null,null,null,null,null,null,null,null,null,null,null,null,null,null,null,null,null,null,null,null,null,null,null,null,null,null,173,"01/02/2018","Sortie",143.16,"Compte Courant","","Air Alpha Habitation",7,"Assurance","7.2","Air Alpha Habitation","","",2018,"février","01/02/2018 Sortie 143,16 Compte Courant  Air Alpha Habitation Assurance Air Alpha Habitation   2018 février"]
[null,null,null,null,null,null,null,null,null,null,null,null,null,null,null,null,null,null,null,null,null,null,null,null,null,null,null,174,"27/01/2018","Sortie",44.39,"Compte Courant","","Courses",1,"Alimentation","1.2","Auchan","","",2018,"janvier","27/01/2018 Sortie 44,39 Compte Courant  Courses Alimentation Auchan   2018 janvier"]
[null,null,null,null,null,null,null,null,null,null,null,null,null,null,null,null,null,null,null,null,null,null,null,null,null,null,null,175,"29/01/2018","Sortie",19.989999999999998,"Compte Courant","","Forfait Maeva",10,"Maëva","10.2","Free Mobile","","",2018,"janvier","29/01/2018 Sortie 19,99 Compte Courant  Forfait Maeva Maëva Free Mobile   2018 janvier"]
[null,null,null,null,null,null,null,null,null,null,null,null,null,null,null,null,null,null,null,null,null,null,null,null,null,null,null,176,"27/01/2018","Sortie",11,"Compte Courant","","Mcdo",1,"Alimentation","1.3","Fast-Food","","",2018,"janvier","27/01/2018 Sortie 11 Compte Courant  Mcdo Alimentation Fast-Food   2018 janvier"]
[null,null,null,null,null,null,null,null,null,null,null,null,null,null,null,null,null,null,null,null,null,null,null,null,null,null,null,177,"26/01/2018","Sortie",36.18,"Compte Courant","","Drive",1,"Alimentation","1.1","Leclerc","","",2018,"janvier","26/01/2018 Sortie 36,18 Compte Courant  Drive Alimentation Leclerc   2018 janvier"]
[null,null,null,null,null,null,null,null,null,null,null,null,null,null,null,null,null,null,null,null,null,null,null,null,null,null,null,178,"29/01/2018","Entrée",2034.7,"Compte Courant","","Janvier Apside",1,"Professionnel","1.1","Salaire","","",2018,"janvier","29/01/2018 Entrée 2034,7 Compte Courant  Janvier Apside Professionnel Salaire   2018 janvier"]
[null,null,null,null,null,null,null,null,null,null,null,null,null,null,null,null,null,null,null,null,null,null,null,null,null,null,null,179,"29/01/2018","Sortie",16.7,"Compte Courant","","Amandes",1,"Alimentation","1.5","L'entrepôt","","",2018,"janvier","29/01/2018 Sortie 16,7 Compte Courant  Amandes Alimentation L'entrepôt   2018 janvier"]
[null,null,null,null,null,null,null,null,null,null,null,null,null,null,null,null,null,null,null,null,null,null,null,null,null,null,null,180,"01/02/2018","Sortie",152.96,"Compte Courant","","Air Alpha Auto",7,"Assurance","7.1","Air Alpha Auto","","",2018,"février","01/02/2018 Sortie 152,96 Compte Courant  Air Alpha Auto Assurance Air Alpha Auto   2018 février"]
[null,null,null,null,null,null,null,null,null,null,null,null,null,null,null,null,null,null,null,null,null,null,null,null,null,null,null,181,"29/01/2018","Sortie",54.24,"Compte Courant","","Essence",3,"Transport","3.1","Essence","","",2018,"janvier","29/01/2018 Sortie 54,24 Compte Courant  Essence Transport Essence   2018 janvier"]
[null,null,null,null,null,null,null,null,null,null,null,null,null,null,null,null,null,null,null,null,null,null,null,null,null,null,null,182,"30/01/2018","Sortie",13.21,"Compte Courant","","Leclerc",1,"Alimentation","1.1","Leclerc","","",2018,"janvier","30/01/2018 Sortie 13,21 Compte Courant  Leclerc Alimentation Leclerc   2018 janvier"]
[null,null,null,null,null,null,null,null,null,null,null,null,null,null,null,null,null,null,null,null,null,null,null,null,null,null,null,183,"31/01/2018","Entrée",75,"Compte Courant","","IK Maeva",3,"Remboursement","3.4","Autre Remboursement","","",2018,"janvier","31/01/2018 Entrée 75 Compte Courant  IK Maeva Remboursement Autre Remboursement   2018 janvier"]
[null,null,null,null,null,null,null,null,null,null,null,null,null,null,null,null,null,null,null,null,null,null,null,null,null,null,null,184,"01/02/2018","Sortie",20,"Compte Courant","","Retrait Istres Cig",10,"Maëva","10.1","Fumette","","",2018,"février","01/02/2018 Sortie 20 Compte Courant  Retrait Istres Cig Maëva Fumette   2018 février"]
[null,null,null,null,null,null,null,null,null,null,null,null,null,null,null,null,null,null,null,null,null,null,null,null,null,null,null,185,"04/02/2018","Sortie",45,"Compte Courant","","PEL Février 2018",2,"Logement","2.4","Autre Dépense Logement","","",2018,"février","04/02/2018 Sortie 45 Compte Courant  PEL Février 2018 Logement Autre Dépense Logement   2018 février"]
[null,null,null,null,null,null,null,null,null,null,null,null,null,null,null,null,null,null,null,null,null,null,null,null,null,null,null,186,"02/02/2018","Sortie",6.33,"Compte Courant","","Carrefour Nîmes",1,"Alimentation","1.8","Autre Dépense Alimentation","","",2018,"février","02/02/2018 Sortie 6,33 Compte Courant  Carrefour Nîmes Alimentation Autre Dépense Alimentation   2018 février"]
[null,null,null,null,null,null,null,null,null,null,null,null,null,null,null,null,null,null,null,null,null,null,null,null,null,null,null,187,"03/02/2018","Sortie",61.81,"Compte Courant","","Courses",1,"Alimentation","1.2","Auchan","","",2018,"février","03/02/2018 Sortie 61,81 Compte Courant  Courses Alimentation Auchan   2018 février"]
[null,null,null,null,null,null,null,null,null,null,null,null,null,null,null,null,null,null,null,null,null,null,null,null,null,null,null,188,"02/02/2018","Sortie",11.76,"Compte Courant","","Courses",1,"Alimentation","1.1","Leclerc","","",2018,"février","02/02/2018 Sortie 11,76 Compte Courant  Courses Alimentation Leclerc   2018 février"]
[null,null,null,null,null,null,null,null,null,null,null,null,null,null,null,null,null,null,null,null,null,null,null,null,null,null,null,189,"03/02/2018","Sortie",13,"Compte Courant","","Thé",1,"Alimentation","1.8","Autre Dépense Alimentation","","",2018,"février","03/02/2018 Sortie 13 Compte Courant  Thé Alimentation Autre Dépense Alimentation   2018 février"]
[null,null,null,null,null,null,null,null,null,null,null,null,null,null,null,null,null,null,null,null,null,null,null,null,null,null,null,190,"03/02/2018","Sortie",34.700000000000003,"Compte Courant","","Memphis Coffee",1,"Alimentation","1.3","Fast-Food","","",2018,"février","03/02/2018 Sortie 34,7 Compte Courant  Memphis Coffee Alimentation Fast-Food   2018 février"]
[null,null,null,null,null,null,null,null,null,null,null,null,null,null,null,null,null,null,null,null,null,null,null,null,null,null,null,191,"03/02/2018","Sortie",40,"Compte Courant","","Remboursement Yoan",5,"Loisirs","5.10","Autre Dépense Loisir","","",2018,"février","03/02/2018 Sortie 40 Compte Courant  Remboursement Yoan Loisirs Autre Dépense Loisir   2018 février"]
[null,null,null,null,null,null,null,null,null,null,null,null,null,null,null,null,null,null,null,null,null,null,null,null,null,null,null,192,"01/01/2018","Budget",200,"Compte Courant",null,"Courses Bio",1,"Alimentation","1.2","Auchan",null,null,2018,"janvier","01/01/2018 Budget 200 Compte Courant  Courses Bio Alimentation Auchan   2018 janvier"]
[null,null,null,null,null,null,null,null,null,null,null,null,null,null,null,null,null,null,null,null,null,null,null,null,null,null,null,193,"01/02/2018","Budget",200,"Compte Courant",null,"Courses Bio",1,"Alimentation","1.2","Auchan",null,null,2018,"février","01/02/2018 Budget 200 Compte Courant  Courses Bio Alimentation Auchan   2018 février"]
[null,null,null,null,null,null,null,null,null,null,null,null,null,null,null,null,null,null,null,null,null,null,null,null,null,null,null,194,"01/03/2018","Budget",200,"Compte Courant",null,"Courses Bio",1,"Alimentation","1.2","Auchan",null,null,2018,"mars","01/03/2018 Budget 200 Compte Courant  Courses Bio Alimentation Auchan   2018 mars"]
[null,null,null,null,null,null,null,null,null,null,null,null,null,null,null,null,null,null,null,null,null,null,null,null,null,null,null,195,"01/04/2018","Budget",200,"Compte Courant",null,"Courses Bio",1,"Alimentation","1.2","Auchan",null,null,2018,"avril","01/04/2018 Budget 200 Compte Courant  Courses Bio Alimentation Auchan   2018 avril"]
[null,null,null,null,null,null,null,null,null,null,null,null,null,null,null,null,null,null,null,null,null,null,null,null,null,null,null,196,"01/05/2018","Budget",200,"Compte Courant",null,"Courses Bio",1,"Alimentation","1.2","Auchan",null,null,2018,"mai","01/05/2018 Budget 200 Compte Courant  Courses Bio Alimentation Auchan   2018 mai"]
[null,null,null,null,null,null,null,null,null,null,null,null,null,null,null,null,null,null,null,null,null,null,null,null,null,null,null,197,"01/06/2018","Budget",200,"Compte Courant",null,"Courses Bio",1,"Alimentation","1.2","Auchan",null,null,2018,"juin","01/06/2018 Budget 200 Compte Courant  Courses Bio Alimentation Auchan   2018 juin"]
[null,null,null,null,null,null,null,null,null,null,null,null,null,null,null,null,null,null,null,null,null,null,null,null,null,null,null,198,"01/07/2018","Budget",200,"Compte Courant",null,"Courses Bio",1,"Alimentation","1.2","Auchan",null,null,2018,"juillet","01/07/2018 Budget 200 Compte Courant  Courses Bio Alimentation Auchan   2018 juillet"]
[null,null,null,null,null,null,null,null,null,null,null,null,null,null,null,null,null,null,null,null,null,null,null,null,null,null,null,199,"01/08/2018","Budget",200,"Compte Courant",null,"Courses Bio",1,"Alimentation","1.2","Auchan",null,null,2018,"août","01/08/2018 Budget 200 Compte Courant  Courses Bio Alimentation Auchan   2018 août"]
[null,null,null,null,null,null,null,null,null,null,null,null,null,null,null,null,null,null,null,null,null,null,null,null,null,null,null,200,"01/09/2018","Budget",200,"Compte Courant",null,"Courses Bio",1,"Alimentation","1.2","Auchan",null,null,2018,"septembre","01/09/2018 Budget 200 Compte Courant  Courses Bio Alimentation Auchan   2018 septembre"]
[null,null,null,null,null,null,null,null,null,null,null,null,null,null,null,null,null,null,null,null,null,null,null,null,null,null,null,201,"01/10/2018","Budget",200,"Compte Courant",null,"Courses Bio",1,"Alimentation","1.2","Auchan",null,null,2018,"octobre","01/10/2018 Budget 200 Compte Courant  Courses Bio Alimentation Auchan   2018 octobre"]
[null,null,null,null,null,null,null,null,null,null,null,null,null,null,null,null,null,null,null,null,null,null,null,null,null,null,null,202,"01/11/2018","Budget",200,"Compte Courant",null,"Courses Bio",1,"Alimentation","1.2","Auchan",null,null,2018,"novembre","01/11/2018 Budget 200 Compte Courant  Courses Bio Alimentation Auchan   2018 novembre"]
[null,null,null,null,null,null,null,null,null,null,null,null,null,null,null,null,null,null,null,null,null,null,null,null,null,null,null,203,"01/12/2018","Budget",200,"Compte Courant",null,"Courses Bio",1,"Alimentation","1.2","Auchan",null,null,2018,"décembre","01/12/2018 Budget 200 Compte Courant  Courses Bio Alimentation Auchan   2018 décembre"]
[null,null,null,null,null,null,null,null,null,null,null,null,null,null,null,null,null,null,null,null,null,null,null,null,null,null,null,204,"01/01/2019","Budget",200,"Compte Courant",null,"Courses Bio",1,"Alimentation","1.2","Auchan",null,null,2019,"janvier","01/01/2019 Budget 200 Compte Courant  Courses Bio Alimentation Auchan   2019 janvier"]
[null,null,null,null,null,null,null,null,null,null,null,null,null,null,null,null,null,null,null,null,null,null,null,null,null,null,null,205,"01/01/2018","Budget",50,"Compte Courant",null,"Autres",1,"Alimentation","1.8","Autre Dépense Alimentation",null,null,2018,"janvier","01/01/2018 Budget 50 Compte Courant  Autres Alimentation Autre Dépense Alimentation   2018 janvier"]
[null,null,null,null,null,null,null,null,null,null,null,null,null,null,null,null,null,null,null,null,null,null,null,null,null,null,null,206,"01/02/2018","Budget",50,"Compte Courant",null,"Autres",1,"Alimentation","1.8","Autre Dépense Alimentation",null,null,2018,"février","01/02/2018 Budget 50 Compte Courant  Autres Alimentation Autre Dépense Alimentation   2018 février"]
[null,null,null,null,null,null,null,null,null,null,null,null,null,null,null,null,null,null,null,null,null,null,null,null,null,null,null,207,"01/03/2018","Budget",50,"Compte Courant",null,"Autres",1,"Alimentation","1.8","Autre Dépense Alimentation",null,null,2018,"mars","01/03/2018 Budget 50 Compte Courant  Autres Alimentation Autre Dépense Alimentation   2018 mars"]
[null,null,null,null,null,null,null,null,null,null,null,null,null,null,null,null,null,null,null,null,null,null,null,null,null,null,null,208,"01/04/2018","Budget",50,"Compte Courant",null,"Autres",1,"Alimentation","1.8","Autre Dépense Alimentation",null,null,2018,"avril","01/04/2018 Budget 50 Compte Courant  Autres Alimentation Autre Dépense Alimentation   2018 avril"]
[null,null,null,null,null,null,null,null,null,null,null,null,null,null,null,null,null,null,null,null,null,null,null,null,null,null,null,209,"01/05/2018","Budget",50,"Compte Courant",null,"Autres",1,"Alimentation","1.8","Autre Dépense Alimentation",null,null,2018,"mai","01/05/2018 Budget 50 Compte Courant  Autres Alimentation Autre Dépense Alimentation   2018 mai"]
[null,null,null,null,null,null,null,null,null,null,null,null,null,null,null,null,null,null,null,null,null,null,null,null,null,null,null,210,"01/06/2018","Budget",50,"Compte Courant",null,"Autres",1,"Alimentation","1.8","Autre Dépense Alimentation",null,null,2018,"juin","01/06/2018 Budget 50 Compte Courant  Autres Alimentation Autre Dépense Alimentation   2018 juin"]
[null,null,null,null,null,null,null,null,null,null,null,null,null,null,null,null,null,null,null,null,null,null,null,null,null,null,null,211,"01/07/2018","Budget",50,"Compte Courant",null,"Autres",1,"Alimentation","1.8","Autre Dépense Alimentation",null,null,2018,"juillet","01/07/2018 Budget 50 Compte Courant  Autres Alimentation Autre Dépense Alimentation   2018 juillet"]
[null,null,null,null,null,null,null,null,null,null,null,null,null,null,null,null,null,null,null,null,null,null,null,null,null,null,null,212,"01/08/2018","Budget",50,"Compte Courant",null,"Autres",1,"Alimentation","1.8","Autre Dépense Alimentation",null,null,2018,"août","01/08/2018 Budget 50 Compte Courant  Autres Alimentation Autre Dépense Alimentation   2018 août"]
[null,null,null,null,null,null,null,null,null,null,null,null,null,null,null,null,null,null,null,null,null,null,null,null,null,null,null,213,"01/09/2018","Budget",50,"Compte Courant",null,"Autres",1,"Alimentation","1.8","Autre Dépense Alimentation",null,null,2018,"septembre","01/09/2018 Budget 50 Compte Courant  Autres Alimentation Autre Dépense Alimentation   2018 septembre"]
[null,null,null,null,null,null,null,null,null,null,null,null,null,null,null,null,null,null,null,null,null,null,null,null,null,null,null,214,"01/10/2018","Budget",50,"Compte Courant",null,"Autres",1,"Alimentation","1.8","Autre Dépense Alimentation",null,null,2018,"octobre","01/10/2018 Budget 50 Compte Courant  Autres Alimentation Autre Dépense Alimentation   2018 octobre"]
[null,null,null,null,null,null,null,null,null,null,null,null,null,null,null,null,null,null,null,null,null,null,null,null,null,null,null,215,"01/11/2018","Budget",50,"Compte Courant",null,"Autres",1,"Alimentation","1.8","Autre Dépense Alimentation",null,null,2018,"novembre","01/11/2018 Budget 50 Compte Courant  Autres Alimentation Autre Dépense Alimentation   2018 novembre"]
[null,null,null,null,null,null,null,null,null,null,null,null,null,null,null,null,null,null,null,null,null,null,null,null,null,null,null,216,"01/12/2018","Budget",50,"Compte Courant",null,"Autres",1,"Alimentation","1.8","Autre Dépense Alimentation",null,null,2018,"décembre","01/12/2018 Budget 50 Compte Courant  Autres Alimentation Autre Dépense Alimentation   2018 décembre"]
[null,null,null,null,null,null,null,null,null,null,null,null,null,null,null,null,null,null,null,null,null,null,null,null,null,null,null,217,"01/01/2019","Budget",50,"Compte Courant",null,"Autres",1,"Alimentation","1.8","Autre Dépense Alimentation",null,null,2019,"janvier","01/01/2019 Budget 50 Compte Courant  Autres Alimentation Autre Dépense Alimentation   2019 janvier"]
[null,null,null,null,null,null,null,null,null,null,null,null,null,null,null,null,null,null,null,null,null,null,null,null,null,null,null,218,"01/01/2018","Budget",50,"Compte Courant",null,"Entretien véhicule",3,"Transport","3.3","Entretien",null,null,2018,"janvier","01/01/2018 Budget 50 Compte Courant  Entretien véhicule Transport Entretien   2018 janvier"]
[null,null,null,null,null,null,null,null,null,null,null,null,null,null,null,null,null,null,null,null,null,null,null,null,null,null,null,219,"01/02/2018","Budget",50,"Compte Courant",null,"Entretien véhicule",3,"Transport","3.3","Entretien",null,null,2018,"février","01/02/2018 Budget 50 Compte Courant  Entretien véhicule Transport Entretien   2018 février"]
[null,null,null,null,null,null,null,null,null,null,null,null,null,null,null,null,null,null,null,null,null,null,null,null,null,null,null,220,"01/03/2018","Budget",50,"Compte Courant",null,"Entretien véhicule",3,"Transport","3.3","Entretien",null,null,2018,"mars","01/03/2018 Budget 50 Compte Courant  Entretien véhicule Transport Entretien   2018 mars"]
[null,null,null,null,null,null,null,null,null,null,null,null,null,null,null,null,null,null,null,null,null,null,null,null,null,null,null,221,"01/04/2018","Budget",50,"Compte Courant",null,"Entretien véhicule",3,"Transport","3.3","Entretien",null,null,2018,"avril","01/04/2018 Budget 50 Compte Courant  Entretien véhicule Transport Entretien   2018 avril"]
[null,null,null,null,null,null,null,null,null,null,null,null,null,null,null,null,null,null,null,null,null,null,null,null,null,null,null,222,"01/05/2018","Budget",50,"Compte Courant",null,"Entretien véhicule",3,"Transport","3.3","Entretien",null,null,2018,"mai","01/05/2018 Budget 50 Compte Courant  Entretien véhicule Transport Entretien   2018 mai"]
[null,null,null,null,null,null,null,null,null,null,null,null,null,null,null,null,null,null,null,null,null,null,null,null,null,null,null,223,"01/06/2018","Budget",50,"Compte Courant",null,"Entretien véhicule",3,"Transport","3.3","Entretien",null,null,2018,"juin","01/06/2018 Budget 50 Compte Courant  Entretien véhicule Transport Entretien   2018 juin"]
[null,null,null,null,null,null,null,null,null,null,null,null,null,null,null,null,null,null,null,null,null,null,null,null,null,null,null,224,"01/07/2018","Budget",50,"Compte Courant",null,"Entretien véhicule",3,"Transport","3.3","Entretien",null,null,2018,"juillet","01/07/2018 Budget 50 Compte Courant  Entretien véhicule Transport Entretien   2018 juillet"]
[null,null,null,null,null,null,null,null,null,null,null,null,null,null,null,null,null,null,null,null,null,null,null,null,null,null,null,225,"01/08/2018","Budget",50,"Compte Courant",null,"Entretien véhicule",3,"Transport","3.3","Entretien",null,null,2018,"août","01/08/2018 Budget 50 Compte Courant  Entretien véhicule Transport Entretien   2018 août"]
[null,null,null,null,null,null,null,null,null,null,null,null,null,null,null,null,null,null,null,null,null,null,null,null,null,null,null,226,"01/09/2018","Budget",50,"Compte Courant",null,"Entretien véhicule",3,"Transport","3.3","Entretien",null,null,2018,"septembre","01/09/2018 Budget 50 Compte Courant  Entretien véhicule Transport Entretien   2018 septembre"]
[null,null,null,null,null,null,null,null,null,null,null,null,null,null,null,null,null,null,null,null,null,null,null,null,null,null,null,227,"01/10/2018","Budget",50,"Compte Courant",null,"Entretien véhicule",3,"Transport","3.3","Entretien",null,null,2018,"octobre","01/10/2018 Budget 50 Compte Courant  Entretien véhicule Transport Entretien   2018 octobre"]
[null,null,null,null,null,null,null,null,null,null,null,null,null,null,null,null,null,null,null,null,null,null,null,null,null,null,null,228,"01/11/2018","Budget",50,"Compte Courant",null,"Entretien véhicule",3,"Transport","3.3","Entretien",null,null,2018,"novembre","01/11/2018 Budget 50 Compte Courant  Entretien véhicule Transport Entretien   2018 novembre"]
[null,null,null,null,null,null,null,null,null,null,null,null,null,null,null,null,null,null,null,null,null,null,null,null,null,null,null,229,"01/12/2018","Budget",50,"Compte Courant",null,"Entretien véhicule",3,"Transport","3.3","Entretien",null,null,2018,"décembre","01/12/2018 Budget 50 Compte Courant  Entretien véhicule Transport Entretien   2018 décembre"]
[null,null,null,null,null,null,null,null,null,null,null,null,null,null,null,null,null,null,null,null,null,null,null,null,null,null,null,230,"01/01/2019","Budget",50,"Compte Courant",null,"Entretien véhicule",3,"Transport","3.3","Entretien",null,null,2019,"janvier","01/01/2019 Budget 50 Compte Courant  Entretien véhicule Transport Entretien   2019 janvier"]
[null,null,null,null,null,null,null,null,null,null,null,null,null,null,null,null,null,null,null,null,null,null,null,null,null,null,null,231,"01/01/2018","Budget",35,"Compte Courant",null,"Abonnement Keep Cool",5,"Loisirs","5.4","Sport",null,null,2018,"janvier","01/01/2018 Budget 35 Compte Courant  Abonnement Keep Cool Loisirs Sport   2018 janvier"]
[null,null,null,null,null,null,null,null,null,null,null,null,null,null,null,null,null,null,null,null,null,null,null,null,null,null,null,232,"01/02/2018","Budget",35,"Compte Courant",null,"Abonnement Keep Cool",5,"Loisirs","5.4","Sport",null,null,2018,"février","01/02/2018 Budget 35 Compte Courant  Abonnement Keep Cool Loisirs Sport   2018 février"]
[null,null,null,null,null,null,null,null,null,null,null,null,null,null,null,null,null,null,null,null,null,null,null,null,null,null,null,233,"01/03/2018","Budget",35,"Compte Courant",null,"Abonnement Keep Cool",5,"Loisirs","5.4","Sport",null,null,2018,"mars","01/03/2018 Budget 35 Compte Courant  Abonnement Keep Cool Loisirs Sport   2018 mars"]
[null,null,null,null,null,null,null,null,null,null,null,null,null,null,null,null,null,null,null,null,null,null,null,null,null,null,null,234,"01/04/2018","Budget",35,"Compte Courant",null,"Abonnement Keep Cool",5,"Loisirs","5.4","Sport",null,null,2018,"avril","01/04/2018 Budget 35 Compte Courant  Abonnement Keep Cool Loisirs Sport   2018 avril"]
[null,null,null,null,null,null,null,null,null,null,null,null,null,null,null,null,null,null,null,null,null,null,null,null,null,null,null,235,"01/05/2018","Budget",35,"Compte Courant",null,"Abonnement Keep Cool",5,"Loisirs","5.4","Sport",null,null,2018,"mai","01/05/2018 Budget 35 Compte Courant  Abonnement Keep Cool Loisirs Sport   2018 mai"]
[null,null,null,null,null,null,null,null,null,null,null,null,null,null,null,null,null,null,null,null,null,null,null,null,null,null,null,236,"01/06/2018","Budget",35,"Compte Courant",null,"Abonnement Keep Cool",5,"Loisirs","5.4","Sport",null,null,2018,"juin","01/06/2018 Budget 35 Compte Courant  Abonnement Keep Cool Loisirs Sport   2018 juin"]
[null,null,null,null,null,null,null,null,null,null,null,null,null,null,null,null,null,null,null,null,null,null,null,null,null,null,null,237,"01/07/2018","Budget",35,"Compte Courant",null,"Abonnement Keep Cool",5,"Loisirs","5.4","Sport",null,null,2018,"juillet","01/07/2018 Budget 35 Compte Courant  Abonnement Keep Cool Loisirs Sport   2018 juillet"]
[null,null,null,null,null,null,null,null,null,null,null,null,null,null,null,null,null,null,null,null,null,null,null,null,null,null,null,238,"01/08/2018","Budget",35,"Compte Courant",null,"Abonnement Keep Cool",5,"Loisirs","5.4","Sport",null,null,2018,"août","01/08/2018 Budget 35 Compte Courant  Abonnement Keep Cool Loisirs Sport   2018 août"]
[null,null,null,null,null,null,null,null,null,null,null,null,null,null,null,null,null,null,null,null,null,null,null,null,null,null,null,239,"01/09/2018","Budget",35,"Compte Courant",null,"Abonnement Keep Cool",5,"Loisirs","5.4","Sport",null,null,2018,"septembre","01/09/2018 Budget 35 Compte Courant  Abonnement Keep Cool Loisirs Sport   2018 septembre"]
[null,null,null,null,null,null,null,null,null,null,null,null,null,null,null,null,null,null,null,null,null,null,null,null,null,null,null,240,"01/10/2018","Budget",35,"Compte Courant",null,"Abonnement Keep Cool",5,"Loisirs","5.4","Sport",null,null,2018,"octobre","01/10/2018 Budget 35 Compte Courant  Abonnement Keep Cool Loisirs Sport   2018 octobre"]
[null,null,null,null,null,null,null,null,null,null,null,null,null,null,null,null,null,null,null,null,null,null,null,null,null,null,null,241,"01/11/2018","Budget",35,"Compte Courant",null,"Abonnement Keep Cool",5,"Loisirs","5.4","Sport",null,null,2018,"novembre","01/11/2018 Budget 35 Compte Courant  Abonnement Keep Cool Loisirs Sport   2018 novembre"]
[null,null,null,null,null,null,null,null,null,null,null,null,null,null,null,null,null,null,null,null,null,null,null,null,null,null,null,242,"01/12/2018","Budget",35,"Compte Courant",null,"Abonnement Keep Cool",5,"Loisirs","5.4","Sport",null,null,2018,"décembre","01/12/2018 Budget 35 Compte Courant  Abonnement Keep Cool Loisirs Sport   2018 décembre"]
[null,null,null,null,null,null,null,null,null,null,null,null,null,null,null,null,null,null,null,null,null,null,null,null,null,null,null,243,"01/01/2019","Budget",35,"Compte Courant",null,"Abonnement Keep Cool",5,"Loisirs","5.4","Sport",null,null,2019,"janvier","01/01/2019 Budget 35 Compte Courant  Abonnement Keep Cool Loisirs Sport   2019 janvier"]
[null,null,null,null,null,null,null,null,null,null,null,null,null,null,null,null,null,null,null,null,null,null,null,null,null,null,null,244,"01/01/2018","Budget",70,"Compte Courant",null,"Assurance Auto",7,"Assurance","7.1","Air Alpha Auto",null,null,2018,"janvier","01/01/2018 Budget 70 Compte Courant  Assurance Auto Assurance Air Alpha Auto   2018 janvier"]
[null,null,null,null,null,null,null,null,null,null,null,null,null,null,null,null,null,null,null,null,null,null,null,null,null,null,null,245,"01/02/2018","Budget",70,"Compte Courant",null,"Assurance Auto",7,"Assurance","7.1","Air Alpha Auto",null,null,2018,"février","01/02/2018 Budget 70 Compte Courant  Assurance Auto Assurance Air Alpha Auto   2018 février"]
[null,null,null,null,null,null,null,null,null,null,null,null,null,null,null,null,null,null,null,null,null,null,null,null,null,null,null,246,"01/03/2018","Budget",70,"Compte Courant",null,"Assurance Auto",7,"Assurance","7.1","Air Alpha Auto",null,null,2018,"mars","01/03/2018 Budget 70 Compte Courant  Assurance Auto Assurance Air Alpha Auto   2018 mars"]
[null,null,null,null,null,null,null,null,null,null,null,null,null,null,null,null,null,null,null,null,null,null,null,null,null,null,null,247,"01/04/2018","Budget",70,"Compte Courant",null,"Assurance Auto",7,"Assurance","7.1","Air Alpha Auto",null,null,2018,"avril","01/04/2018 Budget 70 Compte Courant  Assurance Auto Assurance Air Alpha Auto   2018 avril"]
[null,null,null,null,null,null,null,null,null,null,null,null,null,null,null,null,null,null,null,null,null,null,null,null,null,null,null,248,"01/05/2018","Budget",70,"Compte Courant",null,"Assurance Auto",7,"Assurance","7.1","Air Alpha Auto",null,null,2018,"mai","01/05/2018 Budget 70 Compte Courant  Assurance Auto Assurance Air Alpha Auto   2018 mai"]
[null,null,null,null,null,null,null,null,null,null,null,null,null,null,null,null,null,null,null,null,null,null,null,null,null,null,null,249,"01/06/2018","Budget",70,"Compte Courant",null,"Assurance Auto",7,"Assurance","7.1","Air Alpha Auto",null,null,2018,"juin","01/06/2018 Budget 70 Compte Courant  Assurance Auto Assurance Air Alpha Auto   2018 juin"]
[null,null,null,null,null,null,null,null,null,null,null,null,null,null,null,null,null,null,null,null,null,null,null,null,null,null,null,250,"01/07/2018","Budget",70,"Compte Courant",null,"Assurance Auto",7,"Assurance","7.1","Air Alpha Auto",null,null,2018,"juillet","01/07/2018 Budget 70 Compte Courant  Assurance Auto Assurance Air Alpha Auto   2018 juillet"]
[null,null,null,null,null,null,null,null,null,null,null,null,null,null,null,null,null,null,null,null,null,null,null,null,null,null,null,251,"01/08/2018","Budget",70,"Compte Courant",null,"Assurance Auto",7,"Assurance","7.1","Air Alpha Auto",null,null,2018,"août","01/08/2018 Budget 70 Compte Courant  Assurance Auto Assurance Air Alpha Auto   2018 août"]
[null,null,null,null,null,null,null,null,null,null,null,null,null,null,null,null,null,null,null,null,null,null,null,null,null,null,null,252,"01/09/2018","Budget",70,"Compte Courant",null,"Assurance Auto",7,"Assurance","7.1","Air Alpha Auto",null,null,2018,"septembre","01/09/2018 Budget 70 Compte Courant  Assurance Auto Assurance Air Alpha Auto   2018 septembre"]
[null,null,null,null,null,null,null,null,null,null,null,null,null,null,null,null,null,null,null,null,null,null,null,null,null,null,null,253,"01/10/2018","Budget",70,"Compte Courant",null,"Assurance Auto",7,"Assurance","7.1","Air Alpha Auto",null,null,2018,"octobre","01/10/2018 Budget 70 Compte Courant  Assurance Auto Assurance Air Alpha Auto   2018 octobre"]
[null,null,null,null,null,null,null,null,null,null,null,null,null,null,null,null,null,null,null,null,null,null,null,null,null,null,null,254,"01/11/2018","Budget",70,"Compte Courant",null,"Assurance Auto",7,"Assurance","7.1","Air Alpha Auto",null,null,2018,"novembre","01/11/2018 Budget 70 Compte Courant  Assurance Auto Assurance Air Alpha Auto   2018 novembre"]
[null,null,null,null,null,null,null,null,null,null,null,null,null,null,null,null,null,null,null,null,null,null,null,null,null,null,null,255,"01/12/2018","Budget",70,"Compte Courant",null,"Assurance Auto",7,"Assurance","7.1","Air Alpha Auto",null,null,2018,"décembre","01/12/2018 Budget 70 Compte Courant  Assurance Auto Assurance Air Alpha Auto   2018 décembre"]
[null,null,null,null,null,null,null,null,null,null,null,null,null,null,null,null,null,null,null,null,null,null,null,null,null,null,null,256,"01/01/2019","Budget",70,"Compte Courant",null,"Assurance Auto",7,"Assurance","7.1","Air Alpha Auto",null,null,2019,"janvier","01/01/2019 Budget 70 Compte Courant  Assurance Auto Assurance Air Alpha Auto   2019 janvier"]
[null,null,null,null,null,null,null,null,null,null,null,null,null,null,null,null,null,null,null,null,null,null,null,null,null,null,null,257,"01/01/2018","Budget",19.989999999999998,"Compte Courant",null,"Abonnement Téléphonique",10,"Maëva","10.2","Free Mobile",null,null,2018,"janvier","01/01/2018 Budget 19,99 Compte Courant  Abonnement Téléphonique Maëva Free Mobile   2018 janvier"]
[null,null,null,null,null,null,null,null,null,null,null,null,null,null,null,null,null,null,null,null,null,null,null,null,null,null,null,258,"01/02/2018","Budget",19.989999999999998,"Compte Courant",null,"Abonnement Téléphonique",10,"Maëva","10.2","Free Mobile",null,null,2018,"février","01/02/2018 Budget 19,99 Compte Courant  Abonnement Téléphonique Maëva Free Mobile   2018 février"]
[null,null,null,null,null,null,null,null,null,null,null,null,null,null,null,null,null,null,null,null,null,null,null,null,null,null,null,259,"01/03/2018","Budget",19.989999999999998,"Compte Courant",null,"Abonnement Téléphonique",10,"Maëva","10.2","Free Mobile",null,null,2018,"mars","01/03/2018 Budget 19,99 Compte Courant  Abonnement Téléphonique Maëva Free Mobile   2018 mars"]
[null,null,null,null,null,null,null,null,null,null,null,null,null,null,null,null,null,null,null,null,null,null,null,null,null,null,null,260,"01/04/2018","Budget",19.989999999999998,"Compte Courant",null,"Abonnement Téléphonique",10,"Maëva","10.2","Free Mobile",null,null,2018,"avril","01/04/2018 Budget 19,99 Compte Courant  Abonnement Téléphonique Maëva Free Mobile   2018 avril"]
[null,null,null,null,null,null,null,null,null,null,null,null,null,null,null,null,null,null,null,null,null,null,null,null,null,null,null,261,"01/05/2018","Budget",19.989999999999998,"Compte Courant",null,"Abonnement Téléphonique",10,"Maëva","10.2","Free Mobile",null,null,2018,"mai","01/05/2018 Budget 19,99 Compte Courant  Abonnement Téléphonique Maëva Free Mobile   2018 mai"]
[null,null,null,null,null,null,null,null,null,null,null,null,null,null,null,null,null,null,null,null,null,null,null,null,null,null,null,262,"01/06/2018","Budget",19.989999999999998,"Compte Courant",null,"Abonnement Téléphonique",10,"Maëva","10.2","Free Mobile",null,null,2018,"juin","01/06/2018 Budget 19,99 Compte Courant  Abonnement Téléphonique Maëva Free Mobile   2018 juin"]
[null,null,null,null,null,null,null,null,null,null,null,null,null,null,null,null,null,null,null,null,null,null,null,null,null,null,null,263,"01/07/2018","Budget",19.989999999999998,"Compte Courant",null,"Abonnement Téléphonique",10,"Maëva","10.2","Free Mobile",null,null,2018,"juillet","01/07/2018 Budget 19,99 Compte Courant  Abonnement Téléphonique Maëva Free Mobile   2018 juillet"]
[null,null,null,null,null,null,null,null,null,null,null,null,null,null,null,null,null,null,null,null,null,null,null,null,null,null,null,264,"01/08/2018","Budget",19.989999999999998,"Compte Courant",null,"Abonnement Téléphonique",10,"Maëva","10.2","Free Mobile",null,null,2018,"août","01/08/2018 Budget 19,99 Compte Courant  Abonnement Téléphonique Maëva Free Mobile   2018 août"]
[null,null,null,null,null,null,null,null,null,null,null,null,null,null,null,null,null,null,null,null,null,null,null,null,null,null,null,265,"01/09/2018","Budget",19.989999999999998,"Compte Courant",null,"Abonnement Téléphonique",10,"Maëva","10.2","Free Mobile",null,null,2018,"septembre","01/09/2018 Budget 19,99 Compte Courant  Abonnement Téléphonique Maëva Free Mobile   2018 septembre"]
[null,null,null,null,null,null,null,null,null,null,null,null,null,null,null,null,null,null,null,null,null,null,null,null,null,null,null,266,"01/10/2018","Budget",19.989999999999998,"Compte Courant",null,"Abonnement Téléphonique",10,"Maëva","10.2","Free Mobile",null,null,2018,"octobre","01/10/2018 Budget 19,99 Compte Courant  Abonnement Téléphonique Maëva Free Mobile   2018 octobre"]
[null,null,null,null,null,null,null,null,null,null,null,null,null,null,null,null,null,null,null,null,null,null,null,null,null,null,null,267,"01/11/2018","Budget",19.989999999999998,"Compte Courant",null,"Abonnement Téléphonique",10,"Maëva","10.2","Free Mobile",null,null,2018,"novembre","01/11/2018 Budget 19,99 Compte Courant  Abonnement Téléphonique Maëva Free Mobile   2018 novembre"]
[null,null,null,null,null,null,null,null,null,null,null,null,null,null,null,null,null,null,null,null,null,null,null,null,null,null,null,268,"01/12/2018","Budget",19.989999999999998,"Compte Courant",null,"Abonnement Téléphonique",10,"Maëva","10.2","Free Mobile",null,null,2018,"décembre","01/12/2018 Budget 19,99 Compte Courant  Abonnement Téléphonique Maëva Free Mobile   2018 décembre"]
[null,null,null,null,null,null,null,null,null,null,null,null,null,null,null,null,null,null,null,null,null,null,null,null,null,null,null,269,"01/01/2019","Budget",19.989999999999998,"Compte Courant",null,"Abonnement Téléphonique",10,"Maëva","10.2","Free Mobile",null,null,2019,"janvier","01/01/2019 Budget 19,99 Compte Courant  Abonnement Téléphonique Maëva Free Mobile   2019 janvier"]
[null,null,null,null,null,null,null,null,null,null,null,null,null,null,null,null,null,null,null,null,null,null,null,null,null,null,null,270,"01/01/2018","Budget",10,"Compte Courant",null,"Médicaments",11,"Soins","11.2","Frais Pharmaceutiques",null,null,2018,"janvier","01/01/2018 Budget 10 Compte Courant  Médicaments Soins Frais Pharmaceutiques   2018 janvier"]
[null,null,null,null,null,null,null,null,null,null,null,null,null,null,null,null,null,null,null,null,null,null,null,null,null,null,null,271,"01/02/2018","Budget",10,"Compte Courant",null,"Médicaments",11,"Soins","11.2","Frais Pharmaceutiques",null,null,2018,"février","01/02/2018 Budget 10 Compte Courant  Médicaments Soins Frais Pharmaceutiques   2018 février"]
[null,null,null,null,null,null,null,null,null,null,null,null,null,null,null,null,null,null,null,null,null,null,null,null,null,null,null,272,"01/03/2018","Budget",10,"Compte Courant",null,"Médicaments",11,"Soins","11.2","Frais Pharmaceutiques",null,null,2018,"mars","01/03/2018 Budget 10 Compte Courant  Médicaments Soins Frais Pharmaceutiques   2018 mars"]
[null,null,null,null,null,null,null,null,null,null,null,null,null,null,null,null,null,null,null,null,null,null,null,null,null,null,null,273,"01/04/2018","Budget",10,"Compte Courant",null,"Médicaments",11,"Soins","11.2","Frais Pharmaceutiques",null,null,2018,"avril","01/04/2018 Budget 10 Compte Courant  Médicaments Soins Frais Pharmaceutiques   2018 avril"]
[null,null,null,null,null,null,null,null,null,null,null,null,null,null,null,null,null,null,null,null,null,null,null,null,null,null,null,274,"01/05/2018","Budget",10,"Compte Courant",null,"Médicaments",11,"Soins","11.2","Frais Pharmaceutiques",null,null,2018,"mai","01/05/2018 Budget 10 Compte Courant  Médicaments Soins Frais Pharmaceutiques   2018 mai"]
[null,null,null,null,null,null,null,null,null,null,null,null,null,null,null,null,null,null,null,null,null,null,null,null,null,null,null,275,"01/06/2018","Budget",10,"Compte Courant",null,"Médicaments",11,"Soins","11.2","Frais Pharmaceutiques",null,null,2018,"juin","01/06/2018 Budget 10 Compte Courant  Médicaments Soins Frais Pharmaceutiques   2018 juin"]
[null,null,null,null,null,null,null,null,null,null,null,null,null,null,null,null,null,null,null,null,null,null,null,null,null,null,null,276,"01/07/2018","Budget",10,"Compte Courant",null,"Médicaments",11,"Soins","11.2","Frais Pharmaceutiques",null,null,2018,"juillet","01/07/2018 Budget 10 Compte Courant  Médicaments Soins Frais Pharmaceutiques   2018 juillet"]
[null,null,null,null,null,null,null,null,null,null,null,null,null,null,null,null,null,null,null,null,null,null,null,null,null,null,null,277,"01/08/2018","Budget",10,"Compte Courant",null,"Médicaments",11,"Soins","11.2","Frais Pharmaceutiques",null,null,2018,"août","01/08/2018 Budget 10 Compte Courant  Médicaments Soins Frais Pharmaceutiques   2018 août"]
[null,null,null,null,null,null,null,null,null,null,null,null,null,null,null,null,null,null,null,null,null,null,null,null,null,null,null,278,"01/09/2018","Budget",10,"Compte Courant",null,"Médicaments",11,"Soins","11.2","Frais Pharmaceutiques",null,null,2018,"septembre","01/09/2018 Budget 10 Compte Courant  Médicaments Soins Frais Pharmaceutiques   2018 septembre"]
[null,null,null,null,null,null,null,null,null,null,null,null,null,null,null,null,null,null,null,null,null,null,null,null,null,null,null,279,"01/10/2018","Budget",10,"Compte Courant",null,"Médicaments",11,"Soins","11.2","Frais Pharmaceutiques",null,null,2018,"octobre","01/10/2018 Budget 10 Compte Courant  Médicaments Soins Frais Pharmaceutiques   2018 octobre"]
[null,null,null,null,null,null,null,null,null,null,null,null,null,null,null,null,null,null,null,null,null,null,null,null,null,null,null,280,"01/11/2018","Budget",10,"Compte Courant",null,"Médicaments",11,"Soins","11.2","Frais Pharmaceutiques",null,null,2018,"novembre","01/11/2018 Budget 10 Compte Courant  Médicaments Soins Frais Pharmaceutiques   2018 novembre"]
[null,null,null,null,null,null,null,null,null,null,null,null,null,null,null,null,null,null,null,null,null,null,null,null,null,null,null,281,"01/12/2018","Budget",10,"Compte Courant",null,"Médicaments",11,"Soins","11.2","Frais Pharmaceutiques",null,null,2018,"décembre","01/12/2018 Budget 10 Compte Courant  Médicaments Soins Frais Pharmaceutiques   2018 décembre"]
[null,null,null,null,null,null,null,null,null,null,null,null,null,null,null,null,null,null,null,null,null,null,null,null,null,null,null,282,"01/01/2019","Budget",10,"Compte Courant",null,"Médicaments",11,"Soins","11.2","Frais Pharmaceutiques",null,null,2019,"janvier","01/01/2019 Budget 10 Compte Courant  Médicaments Soins Frais Pharmaceutiques   2019 janvier"]
[null,null,null,null,null,null,null,null,null,null,null,null,null,null,null,null,null,null,null,null,null,null,null,null,null,null,null,283,"01/01/2018","Budget",19.989999999999998,"Compte Courant",null,"Abonnement",6,"Internet - Téléphonie","6.1","Free Mobile",null,null,2018,"janvier","01/01/2018 Budget 19,99 Compte Courant  Abonnement Internet - Téléphonie Free Mobile   2018 janvier"]
[null,null,null,null,null,null,null,null,null,null,null,null,null,null,null,null,null,null,null,null,null,null,null,null,null,null,null,284,"01/02/2018","Budget",19.989999999999998,"Compte Courant",null,"Abonnement",6,"Internet - Téléphonie","6.1","Free Mobile",null,null,2018,"février","01/02/2018 Budget 19,99 Compte Courant  Abonnement Internet - Téléphonie Free Mobile   2018 février"]
[null,null,null,null,null,null,null,null,null,null,null,null,null,null,null,null,null,null,null,null,null,null,null,null,null,null,null,285,"01/03/2018","Budget",19.989999999999998,"Compte Courant",null,"Abonnement",6,"Internet - Téléphonie","6.1","Free Mobile",null,null,2018,"mars","01/03/2018 Budget 19,99 Compte Courant  Abonnement Internet - Téléphonie Free Mobile   2018 mars"]
[null,null,null,null,null,null,null,null,null,null,null,null,null,null,null,null,null,null,null,null,null,null,null,null,null,null,null,286,"01/04/2018","Budget",19.989999999999998,"Compte Courant",null,"Abonnement",6,"Internet - Téléphonie","6.1","Free Mobile",null,null,2018,"avril","01/04/2018 Budget 19,99 Compte Courant  Abonnement Internet - Téléphonie Free Mobile   2018 avril"]
[null,null,null,null,null,null,null,null,null,null,null,null,null,null,null,null,null,null,null,null,null,null,null,null,null,null,null,287,"01/05/2018","Budget",19.989999999999998,"Compte Courant",null,"Abonnement",6,"Internet - Téléphonie","6.1","Free Mobile",null,null,2018,"mai","01/05/2018 Budget 19,99 Compte Courant  Abonnement Internet - Téléphonie Free Mobile   2018 mai"]
[null,null,null,null,null,null,null,null,null,null,null,null,null,null,null,null,null,null,null,null,null,null,null,null,null,null,null,288,"01/06/2018","Budget",19.989999999999998,"Compte Courant",null,"Abonnement",6,"Internet - Téléphonie","6.1","Free Mobile",null,null,2018,"juin","01/06/2018 Budget 19,99 Compte Courant  Abonnement Internet - Téléphonie Free Mobile   2018 juin"]
[null,null,null,null,null,null,null,null,null,null,null,null,null,null,null,null,null,null,null,null,null,null,null,null,null,null,null,289,"01/07/2018","Budget",19.989999999999998,"Compte Courant",null,"Abonnement",6,"Internet - Téléphonie","6.1","Free Mobile",null,null,2018,"juillet","01/07/2018 Budget 19,99 Compte Courant  Abonnement Internet - Téléphonie Free Mobile   2018 juillet"]
[null,null,null,null,null,null,null,null,null,null,null,null,null,null,null,null,null,null,null,null,null,null,null,null,null,null,null,290,"01/08/2018","Budget",19.989999999999998,"Compte Courant",null,"Abonnement",6,"Internet - Téléphonie","6.1","Free Mobile",null,null,2018,"août","01/08/2018 Budget 19,99 Compte Courant  Abonnement Internet - Téléphonie Free Mobile   2018 août"]
[null,null,null,null,null,null,null,null,null,null,null,null,null,null,null,null,null,null,null,null,null,null,null,null,null,null,null,291,"01/09/2018","Budget",19.989999999999998,"Compte Courant",null,"Abonnement",6,"Internet - Téléphonie","6.1","Free Mobile",null,null,2018,"septembre","01/09/2018 Budget 19,99 Compte Courant  Abonnement Internet - Téléphonie Free Mobile   2018 septembre"]
[null,null,null,null,null,null,null,null,null,null,null,null,null,null,null,null,null,null,null,null,null,null,null,null,null,null,null,292,"01/10/2018","Budget",19.989999999999998,"Compte Courant",null,"Abonnement",6,"Internet - Téléphonie","6.1","Free Mobile",null,null,2018,"octobre","01/10/2018 Budget 19,99 Compte Courant  Abonnement Internet - Téléphonie Free Mobile   2018 octobre"]
[null,null,null,null,null,null,null,null,null,null,null,null,null,null,null,null,null,null,null,null,null,null,null,null,null,null,null,293,"01/11/2018","Budget",19.989999999999998,"Compte Courant",null,"Abonnement",6,"Internet - Téléphonie","6.1","Free Mobile",null,null,2018,"novembre","01/11/2018 Budget 19,99 Compte Courant  Abonnement Internet - Téléphonie Free Mobile   2018 novembre"]
[null,null,null,null,null,null,null,null,null,null,null,null,null,null,null,null,null,null,null,null,null,null,null,null,null,null,null,294,"01/12/2018","Budget",19.989999999999998,"Compte Courant",null,"Abonnement",6,"Internet - Téléphonie","6.1","Free Mobile",null,null,2018,"décembre","01/12/2018 Budget 19,99 Compte Courant  Abonnement Internet - Téléphonie Free Mobile   2018 décembre"]
[null,null,null,null,null,null,null,null,null,null,null,null,null,null,null,null,null,null,null,null,null,null,null,null,null,null,null,295,"01/01/2019","Budget",19.989999999999998,"Compte Courant",null,"Abonnement",6,"Internet - Téléphonie","6.1","Free Mobile",null,null,2019,"janvier","01/01/2019 Budget 19,99 Compte Courant  Abonnement Internet - Téléphonie Free Mobile   2019 janvier"]
[null,null,null,null,null,null,null,null,null,null,null,null,null,null,null,null,null,null,null,null,null,null,null,null,null,null,null,296,"01/01/2018","Budget",50,"Compte Courant",null,"Economies",8,"Vacances","8.3","Activités",null,null,2018,"janvier","01/01/2018 Budget 50 Compte Courant  Economies Vacances Activités   2018 janvier"]
[null,null,null,null,null,null,null,null,null,null,null,null,null,null,null,null,null,null,null,null,null,null,null,null,null,null,null,297,"01/02/2018","Budget",50,"Compte Courant",null,"Economies",8,"Vacances","8.3","Activités",null,null,2018,"février","01/02/2018 Budget 50 Compte Courant  Economies Vacances Activités   2018 février"]
[null,null,null,null,null,null,null,null,null,null,null,null,null,null,null,null,null,null,null,null,null,null,null,null,null,null,null,298,"01/03/2018","Budget",50,"Compte Courant",null,"Economies",8,"Vacances","8.3","Activités",null,null,2018,"mars","01/03/2018 Budget 50 Compte Courant  Economies Vacances Activités   2018 mars"]
[null,null,null,null,null,null,null,null,null,null,null,null,null,null,null,null,null,null,null,null,null,null,null,null,null,null,null,299,"01/04/2018","Budget",50,"Compte Courant",null,"Economies",8,"Vacances","8.3","Activités",null,null,2018,"avril","01/04/2018 Budget 50 Compte Courant  Economies Vacances Activités   2018 avril"]
[null,null,null,null,null,null,null,null,null,null,null,null,null,null,null,null,null,null,null,null,null,null,null,null,null,null,null,300,"01/05/2018","Budget",50,"Compte Courant",null,"Economies",8,"Vacances","8.3","Activités",null,null,2018,"mai","01/05/2018 Budget 50 Compte Courant  Economies Vacances Activités   2018 mai"]
[null,null,null,null,null,null,null,null,null,null,null,null,null,null,null,null,null,null,null,null,null,null,null,null,null,null,null,301,"01/06/2018","Budget",50,"Compte Courant",null,"Economies",8,"Vacances","8.3","Activités",null,null,2018,"juin","01/06/2018 Budget 50 Compte Courant  Economies Vacances Activités   2018 juin"]
[null,null,null,null,null,null,null,null,null,null,null,null,null,null,null,null,null,null,null,null,null,null,null,null,null,null,null,302,"01/07/2018","Budget",50,"Compte Courant",null,"Economies",8,"Vacances","8.3","Activités",null,null,2018,"juillet","01/07/2018 Budget 50 Compte Courant  Economies Vacances Activités   2018 juillet"]
[null,null,null,null,null,null,null,null,null,null,null,null,null,null,null,null,null,null,null,null,null,null,null,null,null,null,null,303,"01/08/2018","Budget",50,"Compte Courant",null,"Economies",8,"Vacances","8.3","Activités",null,null,2018,"août","01/08/2018 Budget 50 Compte Courant  Economies Vacances Activités   2018 août"]
[null,null,null,null,null,null,null,null,null,null,null,null,null,null,null,null,null,null,null,null,null,null,null,null,null,null,null,304,"01/09/2018","Budget",50,"Compte Courant",null,"Economies",8,"Vacances","8.3","Activités",null,null,2018,"septembre","01/09/2018 Budget 50 Compte Courant  Economies Vacances Activités   2018 septembre"]
[null,null,null,null,null,null,null,null,null,null,null,null,null,null,null,null,null,null,null,null,null,null,null,null,null,null,null,305,"01/10/2018","Budget",50,"Compte Courant",null,"Economies",8,"Vacances","8.3","Activités",null,null,2018,"octobre","01/10/2018 Budget 50 Compte Courant  Economies Vacances Activités   2018 octobre"]
[null,null,null,null,null,null,null,null,null,null,null,null,null,null,null,null,null,null,null,null,null,null,null,null,null,null,null,306,"01/11/2018","Budget",50,"Compte Courant",null,"Economies",8,"Vacances","8.3","Activités",null,null,2018,"novembre","01/11/2018 Budget 50 Compte Courant  Economies Vacances Activités   2018 novembre"]
[null,null,null,null,null,null,null,null,null,null,null,null,null,null,null,null,null,null,null,null,null,null,null,null,null,null,null,307,"01/12/2018","Budget",50,"Compte Courant",null,"Economies",8,"Vacances","8.3","Activités",null,null,2018,"décembre","01/12/2018 Budget 50 Compte Courant  Economies Vacances Activités   2018 décembre"]
[null,null,null,null,null,null,null,null,null,null,null,null,null,null,null,null,null,null,null,null,null,null,null,null,null,null,null,308,"01/01/2019","Budget",50,"Compte Courant",null,"Economies",8,"Vacances","8.3","Activités",null,null,2019,"janvier","01/01/2019 Budget 50 Compte Courant  Economies Vacances Activités   2019 janvier"]
[null,null,null,null,null,null,null,null,null,null,null,null,null,null,null,null,null,null,null,null,null,null,null,null,null,null,null,309,"01/01/2018","Budget",600,"Compte Courant",null,"Loyer",2,"Logement","2.1","Loyer",null,null,2018,"janvier","01/01/2018 Budget 600 Compte Courant  Loyer Logement Loyer   2018 janvier"]
[null,null,null,null,null,null,null,null,null,null,null,null,null,null,null,null,null,null,null,null,null,null,null,null,null,null,null,310,"01/02/2018","Budget",600,"Compte Courant",null,"Loyer",2,"Logement","2.1","Loyer",null,null,2018,"février","01/02/2018 Budget 600 Compte Courant  Loyer Logement Loyer   2018 février"]
[null,null,null,null,null,null,null,null,null,null,null,null,null,null,null,null,null,null,null,null,null,null,null,null,null,null,null,311,"01/03/2018","Budget",600,"Compte Courant",null,"Loyer",2,"Logement","2.1","Loyer",null,null,2018,"mars","01/03/2018 Budget 600 Compte Courant  Loyer Logement Loyer   2018 mars"]
[null,null,null,null,null,null,null,null,null,null,null,null,null,null,null,null,null,null,null,null,null,null,null,null,null,null,null,312,"01/04/2018","Budget",600,"Compte Courant",null,"Loyer",2,"Logement","2.1","Loyer",null,null,2018,"avril","01/04/2018 Budget 600 Compte Courant  Loyer Logement Loyer   2018 avril"]
[null,null,null,null,null,null,null,null,null,null,null,null,null,null,null,null,null,null,null,null,null,null,null,null,null,null,null,313,"01/05/2018","Budget",600,"Compte Courant",null,"Loyer",2,"Logement","2.1","Loyer",null,null,2018,"mai","01/05/2018 Budget 600 Compte Courant  Loyer Logement Loyer   2018 mai"]
[null,null,null,null,null,null,null,null,null,null,null,null,null,null,null,null,null,null,null,null,null,null,null,null,null,null,null,314,"01/06/2018","Budget",600,"Compte Courant",null,"Loyer",2,"Logement","2.1","Loyer",null,null,2018,"juin","01/06/2018 Budget 600 Compte Courant  Loyer Logement Loyer   2018 juin"]
[null,null,null,null,null,null,null,null,null,null,null,null,null,null,null,null,null,null,null,null,null,null,null,null,null,null,null,315,"01/07/2018","Budget",600,"Compte Courant",null,"Loyer",2,"Logement","2.1","Loyer",null,null,2018,"juillet","01/07/2018 Budget 600 Compte Courant  Loyer Logement Loyer   2018 juillet"]
[null,null,null,null,null,null,null,null,null,null,null,null,null,null,null,null,null,null,null,null,null,null,null,null,null,null,null,316,"01/08/2018","Budget",600,"Compte Courant",null,"Loyer",2,"Logement","2.1","Loyer",null,null,2018,"août","01/08/2018 Budget 600 Compte Courant  Loyer Logement Loyer   2018 août"]
[null,null,null,null,null,null,null,null,null,null,null,null,null,null,null,null,null,null,null,null,null,null,null,null,null,null,null,317,"01/09/2018","Budget",600,"Compte Courant",null,"Loyer",2,"Logement","2.1","Loyer",null,null,2018,"septembre","01/09/2018 Budget 600 Compte Courant  Loyer Logement Loyer   2018 septembre"]
[null,null,null,null,null,null,null,null,null,null,null,null,null,null,null,null,null,null,null,null,null,null,null,null,null,null,null,318,"01/10/2018","Budget",600,"Compte Courant",null,"Loyer",2,"Logement","2.1","Loyer",null,null,2018,"octobre","01/10/2018 Budget 600 Compte Courant  Loyer Logement Loyer   2018 octobre"]
[null,null,null,null,null,null,null,null,null,null,null,null,null,null,null,null,null,null,null,null,null,null,null,null,null,null,null,319,"01/11/2018","Budget",600,"Compte Courant",null,"Loyer",2,"Logement","2.1","Loyer",null,null,2018,"novembre","01/11/2018 Budget 600 Compte Courant  Loyer Logement Loyer   2018 novembre"]
[null,null,null,null,null,null,null,null,null,null,null,null,null,null,null,null,null,null,null,null,null,null,null,null,null,null,null,320,"01/12/2018","Budget",600,"Compte Courant",null,"Loyer",2,"Logement","2.1","Loyer",null,null,2018,"décembre","01/12/2018 Budget 600 Compte Courant  Loyer Logement Loyer   2018 décembre"]
[null,null,null,null,null,null,null,null,null,null,null,null,null,null,null,null,null,null,null,null,null,null,null,null,null,null,null,321,"01/01/2019","Budget",600,"Compte Courant",null,"Loyer",2,"Logement","2.1","Loyer",null,null,2019,"janvier","01/01/2019 Budget 600 Compte Courant  Loyer Logement Loyer   2019 janvier"]
[null,null,null,null,null,null,null,null,null,null,null,null,null,null,null,null,null,null,null,null,null,null,null,null,null,null,null,322,"04/02/2018","Sortie",600,"Compte Courant","","Loyer Février",2,"Logement","2.1","Loyer","","",2018,"février","04/02/2018 Sortie 600 Compte Courant  Loyer Février Logement Loyer   2018 février"]
[null,null,null,null,null,null,null,null,null,null,null,null,null,null,null,null,null,null,null,null,null,null,null,null,null,null,null,323,"05/02/2018","Entrée",326,"Compte Courant","","CAF Février",2,"CAF","2.1","APL","","",2018,"février","05/02/2018 Entrée 326 Compte Courant  CAF Février CAF APL   2018 février"]
[null,null,null,null,null,null,null,null,null,null,null,null,null,null,null,null,null,null,null,null,null,null,null,null,null,null,null,324,"05/02/2018","Sortie",9.6,"Compte Courant","","Tuperoir",1,"Alimentation","1.8","Autre Dépense Alimentation","","",2018,"février","05/02/2018 Sortie 9,6 Compte Courant  Tuperoir Alimentation Autre Dépense Alimentation   2018 février"]
[null,null,null,null,null,null,null,null,null,null,null,null,null,null,null,null,null,null,null,null,null,null,null,null,null,null,null,325,"05/02/2018","Sortie",9.9,"Compte Courant","","Coiffeur",5,"Loisirs","5.3","Coiffeur","","",2018,"février","05/02/2018 Sortie 9,9 Compte Courant  Coiffeur Loisirs Coiffeur   2018 février"]
[null,null,null,null,null,null,null,null,null,null,null,null,null,null,null,null,null,null,null,null,null,null,null,null,null,null,null,326,"05/02/2018","Sortie",1.99,"Compte Courant","","Free Internet",6,"Internet - Téléphonie","6.2","Autre Dépense Internet - Téléphonie","","",2018,"février","05/02/2018 Sortie 1,99 Compte Courant  Free Internet Internet - Téléphonie Autre Dépense Internet - Téléphonie   2018 février"]
[null,null,null,null,null,null,null,null,null,null,null,null,null,null,null,null,null,null,null,null,null,null,null,null,null,null,null,327,"07/02/2018","Sortie",43,"Compte Courant","","Facture Février",2,"Logement","2.2","Electricité","","",2018,"février","07/02/2018 Sortie 43 Compte Courant  Facture Février Logement Electricité   2018 février"]
[null,null,null,null,null,null,null,null,null,null,null,null,null,null,null,null,null,null,null,null,null,null,null,null,null,null,null,328,"08/02/2018","Sortie",100,"Compte Courant","","Shit Maeva",10,"Maëva","10.1","Fumette","","",2018,"février","08/02/2018 Sortie 100 Compte Courant  Shit Maeva Maëva Fumette   2018 février"]
[null,null,null,null,null,null,null,null,null,null,null,null,null,null,null,null,null,null,null,null,null,null,null,null,null,null,null,329,"10/02/2018","Sortie",88.19,"Compte Courant","","Courses Bio",1,"Alimentation","1.2","Auchan","","",2018,"février","10/02/2018 Sortie 88,19 Compte Courant  Courses Bio Alimentation Auchan   2018 février"]
[null,null,null,null,null,null,null,null,null,null,null,null,null,null,null,null,null,null,null,null,null,null,null,null,null,null,null,330,"10/02/2018","Sortie",52.49,"Compte Courant","","Parfum",5,"Loisirs","5.10","Autre Dépense Loisir","","",2018,"février","10/02/2018 Sortie 52,49 Compte Courant  Parfum Loisirs Autre Dépense Loisir   2018 février"]
[null,null,null,null,null,null,null,null,null,null,null,null,null,null,null,null,null,null,null,null,null,null,null,null,null,null,null,331,"15/02/2018","Sortie",14.9,"Compte Courant","","Défrisage Coiffeur",5,"Loisirs","5.3","Coiffeur","","",2018,"février","15/02/2018 Sortie 14,9 Compte Courant  Défrisage Coiffeur Loisirs Coiffeur   2018 février"]
[null,null,null,null,null,null,null,null,null,null,null,null,null,null,null,null,null,null,null,null,null,null,null,null,null,null,null,332,"14/02/2018","Sortie",20,"Compte Courant","","Pizza",1,"Alimentation","1.3","Fast-Food","","",2018,"février","14/02/2018 Sortie 20 Compte Courant  Pizza Alimentation Fast-Food   2018 février"]
[null,null,null,null,null,null,null,null,null,null,null,null,null,null,null,null,null,null,null,null,null,null,null,null,null,null,null,333,"14/02/2018","Sortie",150,"Compte Courant","","Shit Maeva",10,"Maëva","10.1","Fumette","","",2018,"février","14/02/2018 Sortie 150 Compte Courant  Shit Maeva Maëva Fumette   2018 février"]
[null,null,null,null,null,null,null,null,null,null,null,null,null,null,null,null,null,null,null,null,null,null,null,null,null,null,null,334,"09/02/2018","Sortie",8.1,"Compte Courant","","Burger King",1,"Alimentation","1.3","Fast-Food","","",2018,"février","09/02/2018 Sortie 8,1 Compte Courant  Burger King Alimentation Fast-Food   2018 février"]
[null,null,null,null,null,null,null,null,null,null,null,null,null,null,null,null,null,null,null,null,null,null,null,null,null,null,null,335,"10/02/2018","Sortie",14,"Compte Courant","","Tabac",10,"Maëva","10.1","Fumette","","",2018,"février","10/02/2018 Sortie 14 Compte Courant  Tabac Maëva Fumette   2018 février"]
[null,null,null,null,null,null,null,null,null,null,null,null,null,null,null,null,null,null,null,null,null,null,null,null,null,null,null,336,"10/02/2018","Sortie",15.1,"Compte Courant","","SubWay",1,"Alimentation","1.3","Fast-Food","","",2018,"février","10/02/2018 Sortie 15,1 Compte Courant  SubWay Alimentation Fast-Food   2018 février"]
[null,null,null,null,null,null,null,null,null,null,null,null,null,null,null,null,null,null,null,null,null,null,null,null,null,null,null,337,"09/02/2018","Sortie",20,"Compte Courant","","Sortie Maeva Lycée",1,"Alimentation","1.8","Autre Dépense Alimentation","","",2018,"février","09/02/2018 Sortie 20 Compte Courant  Sortie Maeva Lycée Alimentation Autre Dépense Alimentation   2018 février"]
[null,null,null,null,null,null,null,null,null,null,null,null,null,null,null,null,null,null,null,null,null,null,null,null,null,null,null,338,"13/02/2018","Sortie",53.24,"Compte Courant","","Essence",3,"Transport","3.1","Essence","","",2018,"février","13/02/2018 Sortie 53,24 Compte Courant  Essence Transport Essence   2018 février"]
[null,null,null,null,null,null,null,null,null,null,null,null,null,null,null,null,null,null,null,null,null,null,null,null,null,null,null,339,"13/02/2018","Sortie",9.09,"Compte Courant","","Fruits & Légumes",1,"Alimentation","1.5","L'entrepôt","","",2018,"février","13/02/2018 Sortie 9,09 Compte Courant  Fruits & Légumes Alimentation L'entrepôt   2018 février"]
[null,null,null,null,null,null,null,null,null,null,null,null,null,null,null,null,null,null,null,null,null,null,null,null,null,null,null,340,"12/02/2018","Entrée",321,"Compte Courant","","Bourses Février",2,"CAF","2.2","Bourses","","",2018,"février","12/02/2018 Entrée 321 Compte Courant  Bourses Février CAF Bourses   2018 février"]
[null,null,null,null,null,null,null,null,null,null,null,null,null,null,null,null,null,null,null,null,null,null,null,null,null,null,null,341,"16/02/2018","Sortie",0.99,"Compte Courant","","Boursorama Février",9,"Frais Bancaire","9.1","Frais de Gestion de Compte","","",2018,"février","16/02/2018 Sortie 0,99 Compte Courant  Boursorama Février Frais Bancaire Frais de Gestion de Compte   2018 février"]
[null,null,null,null,null,null,null,null,null,null,null,null,null,null,null,null,null,null,null,null,null,null,null,null,null,null,null,342,"17/02/2018","Sortie",14,"Compte Courant","","Tabac",10,"Maëva","10.1","Fumette","","",2018,"février","17/02/2018 Sortie 14 Compte Courant  Tabac Maëva Fumette   2018 février"]
[null,null,null,null,null,null,null,null,null,null,null,null,null,null,null,null,null,null,null,null,null,null,null,null,null,null,null,343,"17/02/2018","Sortie",78.42,"Compte Courant","","Auchan Bio",1,"Alimentation","1.2","Auchan","","",2018,"février","17/02/2018 Sortie 78,42 Compte Courant  Auchan Bio Alimentation Auchan   2018 février"]
[null,null,null,null,null,null,null,null,null,null,null,null,null,null,null,null,null,null,null,null,null,null,null,null,null,null,null,344,"19/02/2018","Sortie",15.3,"Compte Courant","","Ange",1,"Alimentation","1.8","Autre Dépense Alimentation","","",2018,"février","19/02/2018 Sortie 15,3 Compte Courant  Ange Alimentation Autre Dépense Alimentation   2018 février"]
[null,null,null,null,null,null,null,null,null,null,null,null,null,null,null,null,null,null,null,null,null,null,null,null,null,null,null,345,"21/02/2018","Sortie",19.989999999999998,"Compte Courant","","Free Mobile",6,"Internet - Téléphonie","6.1","Free Mobile","","",2018,"février","21/02/2018 Sortie 19,99 Compte Courant  Free Mobile Internet - Téléphonie Free Mobile   2018 février"]
[null,null,null,null,null,null,null,null,null,null,null,null,null,null,null,null,null,null,null,null,null,null,null,null,null,null,null,346,"21/02/2018","Sortie",13.98,"Compte Courant","","Ecouteurs",5,"Loisirs","5.9","Electronique","","",2018,"février","21/02/2018 Sortie 13,98 Compte Courant  Ecouteurs Loisirs Electronique   2018 février"]
[null,null,null,null,null,null,null,null,null,null,null,null,null,null,null,null,null,null,null,null,null,null,null,null,null,null,null,347,"22/02/2018","Sortie",32.17,"Compte Courant","","Le Ryad - Martigues",1,"Alimentation","1.4","Restaurant","","",2018,"février","22/02/2018 Sortie 32,17 Compte Courant  Le Ryad - Martigues Alimentation Restaurant   2018 février"]
[null,null,null,null,null,null,null,null,null,null,null,null,null,null,null,null,null,null,null,null,null,null,null,null,null,null,null,348,"22/02/2018","Sortie",31.16,"Compte Courant","","Leclerc Drive",1,"Alimentation","1.1","Leclerc","","",2018,"février","22/02/2018 Sortie 31,16 Compte Courant  Leclerc Drive Alimentation Leclerc   2018 février"]
[null,null,null,null,null,null,null,null,null,null,null,null,null,null,null,null,null,null,null,null,null,null,null,null,null,null,null,349,"23/02/2018","Sortie",25.4,"Compte Courant","","La Transhumance",1,"Alimentation","1.4","Restaurant","","",2018,"février","23/02/2018 Sortie 25,4 Compte Courant  La Transhumance Alimentation Restaurant   2018 février"]
[null,null,null,null,null,null,null,null,null,null,null,null,null,null,null,null,null,null,null,null,null,null,null,null,null,null,null,350,"24/02/2018","Sortie",19.95,"Compte Courant","","Mcdonald",1,"Alimentation","1.3","Fast-Food","","",2018,"février","24/02/2018 Sortie 19,95 Compte Courant  Mcdonald Alimentation Fast-Food   2018 février"]
[null,null,null,null,null,null,null,null,null,null,null,null,null,null,null,null,null,null,null,null,null,null,null,null,null,null,null,351,"24/02/2018","Sortie",49.07,"Compte Courant","","Auchan",1,"Alimentation","1.2","Auchan","","",2018,"février","24/02/2018 Sortie 49,07 Compte Courant  Auchan Alimentation Auchan   2018 février"]
[null,null,null,null,null,null,null,null,null,null,null,null,null,null,null,null,null,null,null,null,null,null,null,null,null,null,null,352,"26/02/2018","Sortie",191,"Compte Courant","","Entretien C3",3,"Transport","3.3","Entretien","","",2018,"février","26/02/2018 Sortie 191 Compte Courant  Entretien C3 Transport Entretien   2018 février"]
[null,null,null,null,null,null,null,null,null,null,null,null,null,null,null,null,null,null,null,null,null,null,null,null,null,null,null,353,"26/02/2018","Entrée",1918.1,"Compte Courant","","Paie Févier 2018 Apside",1,"Professionnel","1.1","Salaire","","",2018,"février","26/02/2018 Entrée 1918,1 Compte Courant  Paie Févier 2018 Apside Professionnel Salaire   2018 février"]
[null,null,null,null,null,null,null,null,null,null,null,null,null,null,null,null,null,null,null,null,null,null,null,null,null,null,null,354,"27/02/2018","Sortie",26,"Compte Courant","","Japan Expo",8,"Vacances","8.3","Activités","","",2018,"février","27/02/2018 Sortie 26 Compte Courant  Japan Expo Vacances Activités   2018 février"]
[null,null,null,null,null,null,null,null,null,null,null,null,null,null,null,null,null,null,null,null,null,null,null,null,null,null,null,355,"26/02/2018","Sortie",10,"Compte Courant","","Cadre Photo",5,"Loisirs","5.10","Autre Dépense Loisir","","",2018,"février","26/02/2018 Sortie 10 Compte Courant  Cadre Photo Loisirs Autre Dépense Loisir   2018 février"]
[null,null,null,null,null,null,null,null,null,null,null,null,null,null,null,null,null,null,null,null,null,null,null,null,null,null,null,356,"26/02/2018","Sortie",7.2,"Compte Courant","","Photo Mamie Blanche",5,"Loisirs","5.10","Autre Dépense Loisir","","",2018,"février","26/02/2018 Sortie 7,2 Compte Courant  Photo Mamie Blanche Loisirs Autre Dépense Loisir   2018 février"]
[null,null,null,null,null,null,null,null,null,null,null,null,null,null,null,null,null,null,null,null,null,null,null,null,null,null,null,357,"26/02/2018","Sortie",5.21,"Compte Courant","","Courses",1,"Alimentation","1.8","Autre Dépense Alimentation","","",2018,"février","26/02/2018 Sortie 5,21 Compte Courant  Courses Alimentation Autre Dépense Alimentation   2018 février"]
[null,null,null,null,null,null,null,null,null,null,null,null,null,null,null,null,null,null,null,null,null,null,null,null,null,null,null,358,"26/02/2018","Sortie",20,"Compte Courant","","Cadeau Alicia",10,"Maëva","10.3","Autre Dépense Maeva","","",2018,"février","26/02/2018 Sortie 20 Compte Courant  Cadeau Alicia Maëva Autre Dépense Maeva   2018 février"]
[null,null,null,null,null,null,null,null,null,null,null,null,null,null,null,null,null,null,null,null,null,null,null,null,null,null,null,359,"26/02/2018","Sortie",150,"Compte Courant","","Shit Maeva",10,"Maëva","10.1","Fumette","","",2018,"février","26/02/2018 Sortie 150 Compte Courant  Shit Maeva Maëva Fumette   2018 février"]
[null,null,null,null,null,null,null,null,null,null,null,null,null,null,null,null,null,null,null,null,null,null,null,null,null,null,null,360,"28/02/2018","Sortie",4.01,"Compte Courant","","Légumes",1,"Alimentation","1.5","L'entrepôt","","",2018,"février","28/02/2018 Sortie 4,01 Compte Courant  Légumes Alimentation L'entrepôt   2018 février"]
[null,null,null,null,null,null,null,null,null,null,null,null,null,null,null,null,null,null,null,null,null,null,null,null,null,null,null,361,"01/02/2018","Budget",50,"Compte Courant",null,"Restaurant",1,"Alimentation","1.4","Restaurant",null,null,2018,"février","01/02/2018 Budget 50 Compte Courant  Restaurant Alimentation Restaurant   2018 février"]
[null,null,null,null,null,null,null,null,null,null,null,null,null,null,null,null,null,null,null,null,null,null,null,null,null,null,null,362,"01/03/2018","Budget",50,"Compte Courant",null,"Restaurant",1,"Alimentation","1.4","Restaurant",null,null,2018,"mars","01/03/2018 Budget 50 Compte Courant  Restaurant Alimentation Restaurant   2018 mars"]
[null,null,null,null,null,null,null,null,null,null,null,null,null,null,null,null,null,null,null,null,null,null,null,null,null,null,null,363,"01/04/2018","Budget",50,"Compte Courant",null,"Restaurant",1,"Alimentation","1.4","Restaurant",null,null,2018,"avril","01/04/2018 Budget 50 Compte Courant  Restaurant Alimentation Restaurant   2018 avril"]
[null,null,null,null,null,null,null,null,null,null,null,null,null,null,null,null,null,null,null,null,null,null,null,null,null,null,null,364,"01/05/2018","Budget",50,"Compte Courant",null,"Restaurant",1,"Alimentation","1.4","Restaurant",null,null,2018,"mai","01/05/2018 Budget 50 Compte Courant  Restaurant Alimentation Restaurant   2018 mai"]
[null,null,null,null,null,null,null,null,null,null,null,null,null,null,null,null,null,null,null,null,null,null,null,null,null,null,null,365,"01/06/2018","Budget",50,"Compte Courant",null,"Restaurant",1,"Alimentation","1.4","Restaurant",null,null,2018,"juin","01/06/2018 Budget 50 Compte Courant  Restaurant Alimentation Restaurant   2018 juin"]
[null,null,null,null,null,null,null,null,null,null,null,null,null,null,null,null,null,null,null,null,null,null,null,null,null,null,null,366,"01/07/2018","Budget",50,"Compte Courant",null,"Restaurant",1,"Alimentation","1.4","Restaurant",null,null,2018,"juillet","01/07/2018 Budget 50 Compte Courant  Restaurant Alimentation Restaurant   2018 juillet"]
[null,null,null,null,null,null,null,null,null,null,null,null,null,null,null,null,null,null,null,null,null,null,null,null,null,null,null,367,"01/08/2018","Budget",50,"Compte Courant",null,"Restaurant",1,"Alimentation","1.4","Restaurant",null,null,2018,"août","01/08/2018 Budget 50 Compte Courant  Restaurant Alimentation Restaurant   2018 août"]
[null,null,null,null,null,null,null,null,null,null,null,null,null,null,null,null,null,null,null,null,null,null,null,null,null,null,null,368,"01/09/2018","Budget",50,"Compte Courant",null,"Restaurant",1,"Alimentation","1.4","Restaurant",null,null,2018,"septembre","01/09/2018 Budget 50 Compte Courant  Restaurant Alimentation Restaurant   2018 septembre"]
[null,null,null,null,null,null,null,null,null,null,null,null,null,null,null,null,null,null,null,null,null,null,null,null,null,null,null,369,"01/10/2018","Budget",50,"Compte Courant",null,"Restaurant",1,"Alimentation","1.4","Restaurant",null,null,2018,"octobre","01/10/2018 Budget 50 Compte Courant  Restaurant Alimentation Restaurant   2018 octobre"]
[null,null,null,null,null,null,null,null,null,null,null,null,null,null,null,null,null,null,null,null,null,null,null,null,null,null,null,370,"01/11/2018","Budget",50,"Compte Courant",null,"Restaurant",1,"Alimentation","1.4","Restaurant",null,null,2018,"novembre","01/11/2018 Budget 50 Compte Courant  Restaurant Alimentation Restaurant   2018 novembre"]
[null,null,null,null,null,null,null,null,null,null,null,null,null,null,null,null,null,null,null,null,null,null,null,null,null,null,null,371,"01/12/2018","Budget",50,"Compte Courant",null,"Restaurant",1,"Alimentation","1.4","Restaurant",null,null,2018,"décembre","01/12/2018 Budget 50 Compte Courant  Restaurant Alimentation Restaurant   2018 décembre"]
[null,null,null,null,null,null,null,null,null,null,null,null,null,null,null,null,null,null,null,null,null,null,null,null,null,null,null,372,"01/01/2019","Budget",50,"Compte Courant",null,"Restaurant",1,"Alimentation","1.4","Restaurant",null,null,2019,"janvier","01/01/2019 Budget 50 Compte Courant  Restaurant Alimentation Restaurant   2019 janvier"]
[null,null,null,null,null,null,null,null,null,null,null,null,null,null,null,null,null,null,null,null,null,null,null,null,null,null,null,373,"01/02/2019","Budget",50,"Compte Courant",null,"Restaurant",1,"Alimentation","1.4","Restaurant",null,null,2019,"février","01/02/2019 Budget 50 Compte Courant  Restaurant Alimentation Restaurant   2019 février"]
[null,null,null,null,null,null,null,null,null,null,null,null,null,null,null,null,null,null,null,null,null,null,null,null,null,null,null,374,"01/03/2018","Sortie",600,"Compte Courant","","Loyer Mars 2018",2,"Logement","2.1","Loyer","","",2018,"mars","01/03/2018 Sortie 600 Compte Courant  Loyer Mars 2018 Logement Loyer   2018 mars"]
[null,null,null,null,null,null,null,null,null,null,null,null,null,null,null,null,null,null,null,null,null,null,null,null,null,null,null,375,"01/03/2018","Sortie",16.32,"Compte Courant","","Courses",1,"Alimentation","1.1","Leclerc","","",2018,"mars","01/03/2018 Sortie 16,32 Compte Courant  Courses Alimentation Leclerc   2018 mars"]
[null,null,null,null,null,null,null,null,null,null,null,null,null,null,null,null,null,null,null,null,null,null,null,null,null,null,null,376,"01/03/2018","Sortie",51.37,"Compte Courant","","Essence",3,"Transport","3.1","Essence","","",2018,"mars","01/03/2018 Sortie 51,37 Compte Courant  Essence Transport Essence   2018 mars"]
[null,null,null,null,null,null,null,null,null,null,null,null,null,null,null,null,null,null,null,null,null,null,null,null,null,null,null,377,"05/03/2018","Sortie",34.9,"Compte Courant","","Abonnement Keep Cool",5,"Loisirs","5.4","Sport","","",2018,"mars","05/03/2018 Sortie 34,9 Compte Courant  Abonnement Keep Cool Loisirs Sport   2018 mars"]
[null,null,null,null,null,null,null,null,null,null,null,null,null,null,null,null,null,null,null,null,null,null,null,null,null,null,null,378,"05/03/2018","Sortie",9.9,"Compte Courant","","Coiffeur",5,"Loisirs","5.3","Coiffeur","","",2018,"mars","05/03/2018 Sortie 9,9 Compte Courant  Coiffeur Loisirs Coiffeur   2018 mars"]
[null,null,null,null,null,null,null,null,null,null,null,null,null,null,null,null,null,null,null,null,null,null,null,null,null,null,null,379,"05/03/2018","Sortie",45,"Compte Courant","","PEL",2,"Logement","2.4","Autre Dépense Logement","","",2018,"mars","05/03/2018 Sortie 45 Compte Courant  PEL Logement Autre Dépense Logement   2018 mars"]
[null,null,null,null,null,null,null,null,null,null,null,null,null,null,null,null,null,null,null,null,null,null,null,null,null,null,null,380,"02/03/2018","Sortie",18.3,"Compte Courant","","Tabac",10,"Maëva","10.1","Fumette","","",2018,"mars","02/03/2018 Sortie 18,3 Compte Courant  Tabac Maëva Fumette   2018 mars"]
[null,null,null,null,null,null,null,null,null,null,null,null,null,null,null,null,null,null,null,null,null,null,null,null,null,null,null,381,"05/03/2018","Sortie",60.86,"Compte Courant","","Courses",1,"Alimentation","1.2","Auchan","","",2018,"mars","05/03/2018 Sortie 60,86 Compte Courant  Courses Alimentation Auchan   2018 mars"]
[null,null,null,null,null,null,null,null,null,null,null,null,null,null,null,null,null,null,null,null,null,null,null,null,null,null,null,382,"06/03/2018","Sortie",1.99,"Compte Courant","","Free Internet",6,"Internet - Téléphonie","6.2","Autre Dépense Internet - Téléphonie","","",2018,"mars","06/03/2018 Sortie 1,99 Compte Courant  Free Internet Internet - Téléphonie Autre Dépense Internet - Téléphonie   2018 mars"]
[null,null,null,null,null,null,null,null,null,null,null,null,null,null,null,null,null,null,null,null,null,null,null,null,null,null,null,383,"06/03/2018","Sortie",43,"Compte Courant","","EDF",2,"Logement","2.2","Electricité","","",2018,"mars","06/03/2018 Sortie 43 Compte Courant  EDF Logement Electricité   2018 mars"]
[null,null,null,null,null,null,null,null,null,null,null,null,null,null,null,null,null,null,null,null,null,null,null,null,null,null,null,384,"07/03/2018","Sortie",10.95,"Compte Courant","","Botanic",5,"Loisirs","5.2","Cadeau","","",2018,"mars","07/03/2018 Sortie 10,95 Compte Courant  Botanic Loisirs Cadeau   2018 mars"]
[null,null,null,null,null,null,null,null,null,null,null,null,null,null,null,null,null,null,null,null,null,null,null,null,null,null,null,385,"06/03/2018","Sortie",35.799999999999997,"Compte Courant","","OWOK",1,"Alimentation","1.4","Restaurant","","",2018,"mars","06/03/2018 Sortie 35,8 Compte Courant  OWOK Alimentation Restaurant   2018 mars"]
[null,null,null,null,null,null,null,null,null,null,null,null,null,null,null,null,null,null,null,null,null,null,null,null,null,null,null,386,"07/03/2018","Sortie",100,"Compte Courant","","Maeva",10,"Maëva","10.1","Fumette","","",2018,"mars","07/03/2018 Sortie 100 Compte Courant  Maeva Maëva Fumette   2018 mars"]
[null,null,null,null,null,null,null,null,null,null,null,null,null,null,null,null,null,null,null,null,null,null,null,null,null,null,null,387,"07/03/2018","Sortie",15.64,"Compte Courant","","Leclerc",1,"Alimentation","1.1","Leclerc","","",2018,"mars","07/03/2018 Sortie 15,64 Compte Courant  Leclerc Alimentation Leclerc   2018 mars"]
[null,null,null,null,null,null,null,null,null,null,null,null,null,null,null,null,null,null,null,null,null,null,null,null,null,null,null,388,"08/03/2018","Sortie",15.8,"Compte Courant","","Tabac",10,"Maëva","10.1","Fumette","","",2018,"mars","08/03/2018 Sortie 15,8 Compte Courant  Tabac Maëva Fumette   2018 mars"]
[null,null,null,null,null,null,null,null,null,null,null,null,null,null,null,null,null,null,null,null,null,null,null,null,null,null,null,389,"07/03/2018","Sortie",21,"Compte Courant","","Transhumance",1,"Alimentation","1.4","Restaurant","","",2018,"mars","07/03/2018 Sortie 21 Compte Courant  Transhumance Alimentation Restaurant   2018 mars"]
[null,null,null,null,null,null,null,null,null,null,null,null,null,null,null,null,null,null,null,null,null,null,null,null,null,null,null,390,"05/03/2018","Entrée",326,"Compte Courant","","CAF",2,"CAF","2.1","APL","","",2018,"mars","05/03/2018 Entrée 326 Compte Courant  CAF CAF APL   2018 mars"]
[null,null,null,null,null,null,null,null,null,null,null,null,null,null,null,null,null,null,null,null,null,null,null,null,null,null,null,391,"09/03/2018","Sortie",23.12,"Compte Courant","","Transhumance le retour",1,"Alimentation","1.4","Restaurant","","",2018,"mars","09/03/2018 Sortie 23,12 Compte Courant  Transhumance le retour Alimentation Restaurant   2018 mars"]
[null,null,null,null,null,null,null,null,null,null,null,null,null,null,null,null,null,null,null,null,null,null,null,null,null,null,null,392,"10/03/2018","Sortie",92.29,"Compte Courant","","Courses",1,"Alimentation","1.2","Auchan","","",2018,"mars","10/03/2018 Sortie 92,29 Compte Courant  Courses Alimentation Auchan   2018 mars"]
[null,null,null,null,null,null,null,null,null,null,null,null,null,null,null,null,null,null,null,null,null,null,null,null,null,null,null,393,"10/03/2018","Sortie",20,"Compte Courant","","Retrait Martigues ",1,"Alimentation","1.8","Autre Dépense Alimentation","","",2018,"mars","10/03/2018 Sortie 20 Compte Courant  Retrait Martigues  Alimentation Autre Dépense Alimentation   2018 mars"]
[null,null,null,null,null,null,null,null,null,null,null,null,null,null,null,null,null,null,null,null,null,null,null,null,null,null,null,394,"11/03/2018","Sortie",69,"Compte Courant","","Veste Japan Expo",4,"Vêtement","4.1","Haut","","",2018,"mars","11/03/2018 Sortie 69 Compte Courant  Veste Japan Expo Vêtement Haut   2018 mars"]
[null,null,null,null,null,null,null,null,null,null,null,null,null,null,null,null,null,null,null,null,null,null,null,null,null,null,null,395,"15/03/2018","Sortie",80.88,"Compte Courant","","Prozis",1,"Alimentation","1.8","Autre Dépense Alimentation","","",2018,"mars","15/03/2018 Sortie 80,88 Compte Courant  Prozis Alimentation Autre Dépense Alimentation   2018 mars"]
[null,null,null,null,null,null,null,null,null,null,null,null,null,null,null,null,null,null,null,null,null,null,null,null,null,null,null,396,"19/03/2018","Sortie",0.99,"Compte Courant","","Frais Compte",9,"Frais Bancaire","9.1","Frais de Gestion de Compte","","",2018,"mars","19/03/2018 Sortie 0,99 Compte Courant  Frais Compte Frais Bancaire Frais de Gestion de Compte   2018 mars"]
[null,null,null,null,null,null,null,null,null,null,null,null,null,null,null,null,null,null,null,null,null,null,null,null,null,null,null,397,"15/03/2018","Sortie",15.8,"Compte Courant","","Tabac",10,"Maëva","10.1","Fumette","","",2018,"mars","15/03/2018 Sortie 15,8 Compte Courant  Tabac Maëva Fumette   2018 mars"]
[null,null,null,null,null,null,null,null,null,null,null,null,null,null,null,null,null,null,null,null,null,null,null,null,null,null,null,398,"14/03/2018","Sortie",19.989999999999998,"Compte Courant","","Free Maeva",10,"Maëva","10.2","Free Mobile","","",2018,"mars","14/03/2018 Sortie 19,99 Compte Courant  Free Maeva Maëva Free Mobile   2018 mars"]
[null,null,null,null,null,null,null,null,null,null,null,null,null,null,null,null,null,null,null,null,null,null,null,null,null,null,null,399,"12/03/2018","Sortie",9.2100000000000009,"Compte Courant","","Leclerc",1,"Alimentation","1.1","Leclerc","","",2018,"mars","12/03/2018 Sortie 9,21 Compte Courant  Leclerc Alimentation Leclerc   2018 mars"]
[null,null,null,null,null,null,null,null,null,null,null,null,null,null,null,null,null,null,null,null,null,null,null,null,null,null,null,400,"19/03/2018","Sortie",100,"Compte Courant","","Fumette",10,"Maëva","10.1","Fumette","","",2018,"mars","19/03/2018 Sortie 100 Compte Courant  Fumette Maëva Fumette   2018 mars"]
[null,null,null,null,null,null,null,null,null,null,null,null,null,null,null,null,null,null,null,null,null,null,null,null,null,null,null,401,"17/03/2018","Sortie",20,"Compte Courant","","Retrait Pizza",1,"Alimentation","1.3","Fast-Food","","",2018,"mars","17/03/2018 Sortie 20 Compte Courant  Retrait Pizza Alimentation Fast-Food   2018 mars"]
[null,null,null,null,null,null,null,null,null,null,null,null,null,null,null,null,null,null,null,null,null,null,null,null,null,null,null,402,"17/03/2018","Sortie",73.790000000000006,"Compte Courant","","Courses",1,"Alimentation","1.2","Auchan","","",2018,"mars","17/03/2018 Sortie 73,79 Compte Courant  Courses Alimentation Auchan   2018 mars"]
[null,null,null,null,null,null,null,null,null,null,null,null,null,null,null,null,null,null,null,null,null,null,null,null,null,null,null,403,"17/03/2018","Sortie",53.67,"Compte Courant","","Essence",3,"Transport","3.1","Essence","","",2018,"mars","17/03/2018 Sortie 53,67 Compte Courant  Essence Transport Essence   2018 mars"]
[null,null,null,null,null,null,null,null,null,null,null,null,null,null,null,null,null,null,null,null,null,null,null,null,null,null,null,404,"20/03/2018","Entrée",300,"Compte Courant","","Bourse Maëva",2,"CAF","2.2","Bourses","","",2018,"mars","20/03/2018 Entrée 300 Compte Courant  Bourse Maëva CAF Bourses   2018 mars"]
[null,null,null,null,null,null,null,null,null,null,null,null,null,null,null,null,null,null,null,null,null,null,null,null,null,null,null,405,"21/03/2018","Sortie",150,"Compte Courant","","Fumette",10,"Maëva","10.1","Fumette","","",2018,"mars","21/03/2018 Sortie 150 Compte Courant  Fumette Maëva Fumette   2018 mars"]
[null,null,null,null,null,null,null,null,null,null,null,null,null,null,null,null,null,null,null,null,null,null,null,null,null,null,null,406,"21/03/2018","Sortie",15.99,"Compte Courant","","Free",6,"Internet - Téléphonie","6.1","Free Mobile","","",2018,"mars","21/03/2018 Sortie 15,99 Compte Courant  Free Internet - Téléphonie Free Mobile   2018 mars"]
[null,null,null,null,null,null,null,null,null,null,null,null,null,null,null,null,null,null,null,null,null,null,null,null,null,null,null,407,"23/03/2018","Sortie",14.4,"Compte Courant","","Transhumance",1,"Alimentation","1.4","Restaurant","","",2018,"mars","23/03/2018 Sortie 14,4 Compte Courant  Transhumance Alimentation Restaurant   2018 mars"]
[null,null,null,null,null,null,null,null,null,null,null,null,null,null,null,null,null,null,null,null,null,null,null,null,null,null,null,408,"26/03/2018","Sortie",46.87,"Compte Courant","","Ni No Kuni 2",5,"Loisirs","5.8","Jeux Vidéo","","",2018,"mars","26/03/2018 Sortie 46,87 Compte Courant  Ni No Kuni 2 Loisirs Jeux Vidéo   2018 mars"]
[null,null,null,null,null,null,null,null,null,null,null,null,null,null,null,null,null,null,null,null,null,null,null,null,null,null,null,409,"24/03/2018","Sortie",58.01,"Compte Courant","","Auchan Courses",1,"Alimentation","1.2","Auchan","","",2018,"mars","24/03/2018 Sortie 58,01 Compte Courant  Auchan Courses Alimentation Auchan   2018 mars"]
[null,null,null,null,null,null,null,null,null,null,null,null,null,null,null,null,null,null,null,null,null,null,null,null,null,null,null,410,"26/03/2018","Sortie",6.9,"Compte Courant","","Subway",1,"Alimentation","1.3","Fast-Food","","",2018,"mars","26/03/2018 Sortie 6,9 Compte Courant  Subway Alimentation Fast-Food   2018 mars"]
[null,null,null,null,null,null,null,null,null,null,null,null,null,null,null,null,null,null,null,null,null,null,null,null,null,null,null,411,"26/03/2018","Sortie",191,"Compte Courant","","Entretien Voiture",3,"Transport","3.3","Entretien","","",2018,"mars","26/03/2018 Sortie 191 Compte Courant  Entretien Voiture Transport Entretien   2018 mars"]
[null,null,null,null,null,null,null,null,null,null,null,null,null,null,null,null,null,null,null,null,null,null,null,null,null,null,null,412,"28/03/2018","Sortie",17,"Compte Courant","","PV Stationnement",3,"Transport","3.4","Autre Dépense Transport","","",2018,"mars","28/03/2018 Sortie 17 Compte Courant  PV Stationnement Transport Autre Dépense Transport   2018 mars"]
[null,null,null,null,null,null,null,null,null,null,null,null,null,null,null,null,null,null,null,null,null,null,null,null,null,null,null,413,"28/03/2018","Sortie",15.8,"Compte Courant","","Tabac",10,"Maëva","10.1","Fumette","","",2018,"mars","28/03/2018 Sortie 15,8 Compte Courant  Tabac Maëva Fumette   2018 mars"]
[null,null,null,null,null,null,null,null,null,null,null,null,null,null,null,null,null,null,null,null,null,null,null,null,null,null,null,414,"28/03/2018","Entrée",1901.43,"Compte Courant","","Paie Mars 2018",1,"Professionnel","1.1","Salaire","","",2018,"mars","28/03/2018 Entrée 1901,43 Compte Courant  Paie Mars 2018 Professionnel Salaire   2018 mars"]
[null,null,null,null,null,null,null,null,null,null,null,null,null,null,null,null,null,null,null,null,null,null,null,null,null,null,null,415,"01/04/2018","Sortie",150,"Compte Courant","","Fumette",10,"Maëva","10.1","Fumette","","",2018,"avril","01/04/2018 Sortie 150 Compte Courant  Fumette Maëva Fumette   2018 avril"]
[null,null,null,null,null,null,null,null,null,null,null,null,null,null,null,null,null,null,null,null,null,null,null,null,null,null,null,416,"01/04/2018","Sortie",39.799999999999997,"Compte Courant","","Wok",1,"Alimentation","1.4","Restaurant","","",2018,"avril","01/04/2018 Sortie 39,8 Compte Courant  Wok Alimentation Restaurant   2018 avril"]
[null,null,null,null,null,null,null,null,null,null,null,null,null,null,null,null,null,null,null,null,null,null,null,null,null,null,null,417,"30/03/2018","Sortie",51.18,"Compte Courant","","Essence",3,"Transport","3.1","Essence","","",2018,"mars","30/03/2018 Sortie 51,18 Compte Courant  Essence Transport Essence   2018 mars"]
[null,null,null,null,null,null,null,null,null,null,null,null,null,null,null,null,null,null,null,null,null,null,null,null,null,null,null,418,"01/04/2018","Sortie",82.12,"Compte Courant","","Auchan",1,"Alimentation","1.2","Auchan","","",2018,"avril","01/04/2018 Sortie 82,12 Compte Courant  Auchan Alimentation Auchan   2018 avril"]
[null,null,null,null,null,null,null,null,null,null,null,null,null,null,null,null,null,null,null,null,null,null,null,null,null,null,null,419,"01/04/2018","Sortie",14.88,"Compte Courant","","Géant",1,"Alimentation","1.1","Leclerc","","",2018,"avril","01/04/2018 Sortie 14,88 Compte Courant  Géant Alimentation Leclerc   2018 avril"]
[null,null,null,null,null,null,null,null,null,null,null,null,null,null,null,null,null,null,null,null,null,null,null,null,null,null,null,420,"01/04/2018","Sortie",600,"Compte Courant","","Loyer Avril 2018",2,"Logement","2.1","Loyer","","",2018,"avril","01/04/2018 Sortie 600 Compte Courant  Loyer Avril 2018 Logement Loyer   2018 avril"]
[null,null,null,null,null,null,null,null,null,null,null,null,null,null,null,null,null,null,null,null,null,null,null,null,null,null,null,421,"01/04/2018","transfert",-300,"Compte Courant",null,"Virement Economie",null,"",null,"",null,null,2018,"avril","01/04/2018 transfert -300 Compte Courant  Virement Economie     2018 avril"]
[null,null,null,null,null,null,null,null,null,null,null,null,null,null,null,null,null,null,null,null,null,null,null,null,null,null,null,422,"01/04/2018","transfert",300,"Livret A",null,"Virement Economie",null,"",null,"",null,null,2018,"avril","01/04/2018 transfert 300 Livret A  Virement Economie     2018 avril"]
[null,null,null,null,null,null,null,null,null,null,null,null,null,null,null,null,null,null,null,null,null,null,null,null,null,null,null,423,"04/04/2018","Sortie",34.9,"Compte Courant","","Abonnement Keep Cool",5,"Loisirs","5.4","Sport","","",2018,"avril","04/04/2018 Sortie 34,9 Compte Courant  Abonnement Keep Cool Loisirs Sport   2018 avril"]
[null,null,null,null,null,null,null,null,null,null,null,null,null,null,null,null,null,null,null,null,null,null,null,null,null,null,null,424,"05/04/2018","Entrée",326,"Compte Courant","","CAF",2,"CAF","2.1","APL","","",2018,"avril","05/04/2018 Entrée 326 Compte Courant  CAF CAF APL   2018 avril"]
[null,null,null,null,null,null,null,null,null,null,null,null,null,null,null,null,null,null,null,null,null,null,null,null,null,null,null,425,"05/04/2018","Sortie",9.9,"Compte Courant","","Coiffeur",5,"Loisirs","5.3","Coiffeur","","",2018,"avril","05/04/2018 Sortie 9,9 Compte Courant  Coiffeur Loisirs Coiffeur   2018 avril"]
[null,null,null,null,null,null,null,null,null,null,null,null,null,null,null,null,null,null,null,null,null,null,null,null,null,null,null,426,"05/04/2018","transfert",-45,"Compte Courant",null,"PEL Avril 2018",null,"",null,"",null,null,2018,"avril","05/04/2018 transfert -45 Compte Courant  PEL Avril 2018     2018 avril"]
[null,null,null,null,null,null,null,null,null,null,null,null,null,null,null,null,null,null,null,null,null,null,null,null,null,null,null,427,"05/04/2018","transfert",45,"PEL",null,"PEL Avril 2018",null,"",null,"",null,null,2018,"avril","05/04/2018 transfert 45 PEL  PEL Avril 2018     2018 avril"]
[null,null,null,null,null,null,null,null,null,null,null,null,null,null,null,null,null,null,null,null,null,null,null,null,null,null,null,428,"05/04/2018","Sortie",15.8,"Compte Courant","","Tabac",10,"Maëva","10.1","Fumette","","",2018,"avril","05/04/2018 Sortie 15,8 Compte Courant  Tabac Maëva Fumette   2018 avril"]
[null,null,null,null,null,null,null,null,null,null,null,null,null,null,null,null,null,null,null,null,null,null,null,null,null,null,null,429,"09/04/2018","Sortie",1.99,"Compte Courant","","Free",6,"Internet - Téléphonie","6.2","Autre Dépense Internet - Téléphonie","","",2018,"avril","09/04/2018 Sortie 1,99 Compte Courant  Free Internet - Téléphonie Autre Dépense Internet - Téléphonie   2018 avril"]
[null,null,null,null,null,null,null,null,null,null,null,null,null,null,null,null,null,null,null,null,null,null,null,null,null,null,null,430,"09/04/2018","Sortie",43,"Compte Courant","","EDF",2,"Logement","2.2","Electricité","","",2018,"avril","09/04/2018 Sortie 43 Compte Courant  EDF Logement Electricité   2018 avril"]
[null,null,null,null,null,null,null,null,null,null,null,null,null,null,null,null,null,null,null,null,null,null,null,null,null,null,null,431,"07/04/2018","Sortie",53.1,"Compte Courant","","Auchan",1,"Alimentation","1.2","Auchan","","",2018,"avril","07/04/2018 Sortie 53,1 Compte Courant  Auchan Alimentation Auchan   2018 avril"]

{"sheet":"Analyse","index":2,"n_rows":28,"n_cols":23,"rows_kept":28,"cut":false,"hidden":true,"merged":[]}
[]
[]
[]
[]
[null,null,null,null,null,null,null,null,"Somme de Somme",null,null,null,null,null,null,"Somme de Somme"]
[null,null,null,null,null,null,null,null,null,"Sortie"]
[null,null,null,null,null,null,null,null,"Assurance",212.49,null,null,null,null,null,"Total général"]
[null,null,null,null,null,null,null,null,"Total général",212.49]
[]
[null,null,null,null,null,null,null,null,null,null,null,null,null,null,null,null,null,null,null,null,null,"Sortie",{"$f":"GETPIVOTDATA(\"Somme\",$I$5,\"Type\",\"Sortie\")","v":212.49}]
[null,null,null,null,null,null,null,null,null,null,null,null,null,null,null,null,null,null,null,null,null,"Entrée",{"$f":"GETPIVOTDATA(\"Somme\",$P$5,\"Type\",\"Entrée\")","v":{"$error":"#REF!"}}]
[]
[]
[]
[]
[]
[]
[]
[]
[]
[]
[]
[]
[null,"Somme de Somme"]
[null,null,"Sortie",null,null,null,null,null,"Janvier","Février","Mars","Avril","Mai","Juin","Juillet","Août","Septembre","Octobre","Novembre","Décembre"]
[null,"Assurance",null,null,null,null,null,"Sortie",{"$f":"IFERROR(GETPIVOTDATA(\"Somme\",Rapport!$B$3,\"Type\",\"Sortie\",\"Mois\",I$25),\"\")","v":212.49},{"$f":"IFERROR(GETPIVOTDATA(\"Somme\",Rapport!$B$3,\"Type\",\"Sortie\",\"Mois\",J$25),\"\")","v":""},{"$f":"IFERROR(GETPIVOTDATA(\"Somme\",Rapport!$B$3,\"Type\",\"Sortie\",\"Mois\",K$25),\"\")","v":""},{"$f":"IFERROR(GETPIVOTDATA(\"Somme\",Rapport!$B$3,\"Type\",\"Sortie\",\"Mois\",L$25),\"\")","v":""},{"$f":"IFERROR(GETPIVOTDATA(\"Somme\",Rapport!$B$3,\"Type\",\"Sortie\",\"Mois\",M$25),\"\")","v":""},{"$f":"IFERROR(GETPIVOTDATA(\"Somme\",Rapport!$B$3,\"Type\",\"Sortie\",\"Mois\",N$25),\"\")","v":""},{"$f":"IFERROR(GETPIVOTDATA(\"Somme\",Rapport!$B$3,\"Type\",\"Sortie\",\"Mois\",O$25),\"\")","v":""},{"$f":"IFERROR(GETPIVOTDATA(\"Somme\",Rapport!$B$3,\"Type\",\"Sortie\",\"Mois\",P$25),\"\")","v":""},{"$f":"IFERROR(GETPIVOTDATA(\"Somme\",Rapport!$B$3,\"Type\",\"Sortie\",\"Mois\",Q$25),\"\")","v":""},{"$f":"IFERROR(GETPIVOTDATA(\"Somme\",Rapport!$B$3,\"Type\",\"Sortie\",\"Mois\",R$25),\"\")","v":""},{"$f":"IFERROR(GETPIVOTDATA(\"Somme\",Rapport!$B$3,\"Type\",\"Sortie\",\"Mois\",S$25),\"\")","v":""},{"$f":"IFERROR(GETPIVOTDATA(\"Somme\",Rapport!$B$3,\"Type\",\"Sortie\",\"Mois\",T$25),\"\")","v":""}]
[null,"Air Alpha Auto",212.49,null,null,null,null,"Budgeter",{"$f":"IFERROR(GETPIVOTDATA(\"Somme\",Rapport!$B$3,\"Type\",\"Budget\",\"Mois\",I$25),\"\")","v":""},{"$f":"IFERROR(GETPIVOTDATA(\"Somme\",Rapport!$B$3,\"Type\",\"Budget\",\"Mois\",J$25),\"\")","v":""},{"$f":"IFERROR(GETPIVOTDATA(\"Somme\",Rapport!$B$3,\"Type\",\"Budget\",\"Mois\",K$25),\"\")","v":""},{"$f":"IFERROR(GETPIVOTDATA(\"Somme\",Rapport!$B$3,\"Type\",\"Budget\",\"Mois\",L$25),\"\")","v":""},{"$f":"IFERROR(GETPIVOTDATA(\"Somme\",Rapport!$B$3,\"Type\",\"Budget\",\"Mois\",M$25),\"\")","v":""},{"$f":"IFERROR(GETPIVOTDATA(\"Somme\",Rapport!$B$3,\"Type\",\"Budget\",\"Mois\",N$25),\"\")","v":""},{"$f":"IFERROR(GETPIVOTDATA(\"Somme\",Rapport!$B$3,\"Type\",\"Budget\",\"Mois\",O$25),\"\")","v":""},{"$f":"IFERROR(GETPIVOTDATA(\"Somme\",Rapport!$B$3,\"Type\",\"Budget\",\"Mois\",P$25),\"\")","v":""},{"$f":"IFERROR(GETPIVOTDATA(\"Somme\",Rapport!$B$3,\"Type\",\"Budget\",\"Mois\",Q$25),\"\")","v":""},{"$f":"IFERROR(GETPIVOTDATA(\"Somme\",Rapport!$B$3,\"Type\",\"Budget\",\"Mois\",R$25),\"\")","v":""},{"$f":"IFERROR(GETPIVOTDATA(\"Somme\",Rapport!$B$3,\"Type\",\"Budget\",\"Mois\",S$25),\"\")","v":""},{"$f":"IFERROR(GETPIVOTDATA(\"Somme\",Rapport!$B$3,\"Type\",\"Budget\",\"Mois\",T$25),\"\")","v":""}]
[null,null,null,null,null,null,null,"Différence",{"$f":"I27-I26","v":{"$error":"#VALUE!"}},{"$f":"J27-J26","v":{"$error":"#VALUE!"}},{"$error":"#VALUE!"},{"$error":"#VALUE!"},{"$error":"#VALUE!"},{"$error":"#VALUE!"},{"$error":"#VALUE!"},{"$error":"#VALUE!"},{"$error":"#VALUE!"},{"$error":"#VALUE!"},{"$error":"#VALUE!"},{"$error":"#VALUE!"}]

{"sheet":"Home","index":3,"n_rows":0,"n_cols":0,"rows_kept":0,"cut":false,"hidden":false,"merged":[]}

{"sheet":"Rapport","index":4,"n_rows":10,"n_cols":4,"rows_kept":10,"cut":false,"hidden":true,"merged":[]}
[]
[]
[null,"Somme de Somme","Étiquettes de colonnes"]
[null,"Étiquettes de lignes","janvier","Total général"]
[null,"Sortie"]
[null,"Assurance"]
[null,"Air Alpha Auto",212.49,212.49]
[null,"Total Assurance",212.49,212.49]
[null,"Total Sortie",212.49,212.49]
[null,"Total général",212.49,212.49]

{"sheet":"Configuration","index":5,"n_rows":7,"n_cols":5,"rows_kept":7,"cut":false,"hidden":true,"merged":[]}
[]
[null,"Type",null,"Périodicité","Code"]
[null,"Entrée",null,"Journalier","d"]
[null,"Sortie",null,"Hebdomadaire","WW"]
[null,"Budget",null,"Mensuel","M"]
[null,"Transfert",null,"Trimestriel","Q"]
[null,null,null,"Annuel","YYYY"]

{"sheet":"Comptes","index":6,"n_rows":10,"n_cols":6,"rows_kept":10,"cut":false,"hidden":true,"merged":[]}
[]
[]
[]
[null,"ID","Compte","Départ","Caculé","Solde"]
[null,{"$f":"ROW(B5)-4","v":1},"Compte Courant",0,{"$f":"SUM(SUMIFS(Inpute[Somme],Inpute[Type],{\"Entrée\";\"Transfert\"},Inpute[Compte],Comptes!C5))-SUMIFS(Inpute[Somme],Inpute[Compte],Comptes!C5,Inpute[Type],\"Sortie\")","v":-212.49},{"$f":"Compte[Départ]+Compte[Caculé]","v":-212.49}]
[null,2,"Livret Jeune",0,{"$f":"SUM(SUMIFS(Inpute[Somme],Inpute[Type],{\"Entrée\";\"Transfert\"},Inpute[Compte],Comptes!C6))-SUMIFS(Inpute[Somme],Inpute[Compte],Comptes!C6,Inpute[Type],\"Sortie\")","v":0},{"$f":"Compte[Départ]+Compte[Caculé]","v":0}]
[null,3,"Livret A",0,{"$f":"SUM(SUMIFS(Inpute[Somme],Inpute[Type],{\"Entrée\";\"Transfert\"},Inpute[Compte],Comptes!C7))-SUMIFS(Inpute[Somme],Inpute[Compte],Comptes!C7,Inpute[Type],\"Sortie\")","v":0},{"$f":"Compte[Départ]+Compte[Caculé]","v":0}]
[null,4,"PEL",0,{"$f":"SUM(SUMIFS(Inpute[Somme],Inpute[Type],{\"Entrée\";\"Transfert\"},Inpute[Compte],Comptes!C8))-SUMIFS(Inpute[Somme],Inpute[Compte],Comptes!C8,Inpute[Type],\"Sortie\")","v":0},{"$f":"Compte[Départ]+Compte[Caculé]","v":0}]
[null,5,"PEE",0,{"$f":"SUM(SUMIFS(Inpute[Somme],Inpute[Type],{\"Entrée\";\"Transfert\"},Inpute[Compte],Comptes!C9))-SUMIFS(Inpute[Somme],Inpute[Compte],Comptes!C9,Inpute[Type],\"Sortie\")","v":0},{"$f":"Compte[Départ]+Compte[Caculé]","v":0}]
[null,6,"PERCO",0,{"$f":"SUM(SUMIFS(Inpute[Somme],Inpute[Type],{\"Entrée\";\"Transfert\"},Inpute[Compte],Comptes!C10))-SUMIFS(Inpute[Somme],Inpute[Compte],Comptes!C10,Inpute[Type],\"Sortie\")","v":0},{"$f":"Compte[Départ]+Compte[Caculé]","v":0}]